{"text_format":"1","workbook":"xlsx","n_sheets":25,"sheets":["入力のルール","目次","入力シート","BELS連絡票","委任状","評価申請書1面","2面","2-別 (申)","2-別 (主)","2-別(設)","2-別 (施)","3面","4面","4-別（情報）","設内1面","設内2面","計算シート","MAST","掲承1面","掲承2面","変更評価申請書1面","軽微な変更","軽微な変更-別（参考書式）","再交付","再2面"],"not_rendered":{"charts":0,"images":5,"macros":1,"external_links":0,"defined_names":33,"comments":1,"pivot_tables":0},"unopened":[],"bounds":{"document_bytes":16777216,"sheet_cells":100000,"rows_first":2000,"rows_last":500,"rows_between":2000,"halvings":0,"cell_chars":16384,"cell_head_chars":4096},"cells_cut":0,"cells_raw":0,"read":"whole","date_system":"1900"}

{"sheet":"入力のルール","index":0,"n_rows":62,"n_cols":28,"rows_kept":62,"cut":false,"hidden":false,"merged":[[31,2,31,6],[1,0,2,6],[32,2,32,6],[33,2,33,6]]}
[]
["入力のルール"]
[]
[]
[]
[]
[]
[null,null,"黄色セルに入力"]
[]
[null,null,"水色セルは選択ボタンから入力"]
[]
[null,null,"ピンク色セルの□を左クリックすると、☑が表示され、もう一度左クリックすると□に戻ります。"]
[]
[null,null,"緑色部分は自動的に反映されます。"]
[]
[null,"・","[目次]シートの項目をクリックすると、各シートにリンクされます。"]
[]
[null,"・","各シートの、　　　のボタンをクリックすると、[目次]シートに戻ります。"]
[]
[]
[null,"①","　　　　　　　　に必要事項を入力してください。"]
[]
[null,null,"その他は、上記に従い入力してください。"]
[]
[null,"②","提出時は、下タブ　　　　　　　を印刷し、正副2部提出してください。"]
[]
[null,null,"※ZEHまたはゼロエネ相当の場合のみ、　　　　　　　　　　を提出してください。"]
[]
[]
[]
[null,null,"更新履歴"]
[null,null,"2018-04-01",null,null,null,null,"Ver.1.0　開始"]
[null,null,"2019-09-01",null,null,null,null,"Ver.1.1　計算シートの仕様変更に伴う改訂"]
[null,null,"2019-11-18",null,null,null,null,"Ver.1.2　法改正に伴う改訂"]
[]
[]
[]
[]
[]
[]
[]
[]
[]
[]
[]
[]
[]
[]
[]
[]
[]
[]
[]
[]
[]
[]
[]
[]
["事前相談、随時受付中!!"]
["     お気軽にご相談ください。"]
[]
[null,null,null,null,null,null,null,null,null,null,null,null,null,null,null,null,null,null,null,null,null,null,null,null,null,null,null,"一般財団法人 岩手県建築住宅センター　TEL019-623-4420　BELS専用アドレス　bels@ikjc.or.jp"]

{"sheet":"目次","index":1,"n_rows":108,"n_cols":52,"rows_kept":108,"cut":false,"hidden":false,"merged":[[1,0,2,6],[1,8,2,51],[9,5,10,16],[9,30,10,41],[5,2,7,8],[5,27,7,33],[31,34,32,44],[12,5,13,16],[12,30,13,41],[15,5,16,16],[15,30,16,41],[18,7,19,10],[18,32,19,35],[28,21,38,27],[104,5,105,27],[58,30,61,44],[43,7,44,10],[43,32,44,35],[46,9,47,19],[46,34,47,44],[49,5,50,16],[49,30,50,41],[55,32,56,35],[58,5,61,19],[90,5,91,27],[93,7,94,10],[96,7,97,10],[75,2,77,8],[86,2,88,8],[100,2,102,8],[25,48,61,50],[21,34,22,44],[23,34,24,44],[65,5,66,19],[52,32,53,35],[34,9,35,19],[34,34,35,44],[37,9,38,19],[37,34,38,44],[40,7,41,10],[40,32,41,35],[25,7,26,10],[25,32,26,35],[28,9,29,19],[28,34,29,44],[31,9,32,19],[68,7,69,10],[71,7,72,10],[79,5,80,27],[82,7,83,17],[52,7,53,10],[55,7,56,10],[65,20,66,32]]}
[]
["シートの構成",null,null,null,null,null,null,null,"※下線をクリックすると、それぞれのシートに跳びます。各シートの　　　　　をクリックすると目次に戻ります。"]
[]
[]
[]
[null,null,"01申請",null,null,null,null,null,null,null,null,null,null,null,null,null,null,null,null,null,null,null,null,null,null,null,null,"02変更申請"]
[]
[]
[]
[null,null,null,null,null,"BELS評価連絡票",null,null,null,null,null,null,null,null,null,null,null,null,null,null,null,null,null,null,null,null,null,null,null,null,"BELS評価（変更）連絡票"]
[]
[]
[null,null,null,null,null,"委任状",null,null,null,null,null,null,null,null,null,null,null,null,null,null,null,null,null,null,null,null,null,null,null,null,"※委任状の添付不要"]
[]
[]
[null,null,null,null,null,"BELSに係る評価申請書",null,null,null,null,null,null,null,null,null,null,null,"（別記様式第７号）",null,null,null,null,null,null,null,null,null,null,null,null,"BELSに係る変更評価申請書",null,null,null,null,null,null,null,null,null,null,null,"（別記様式第８号）"]
[]
[]
[null,null,null,null,null,null,null,"第一面",null,null,null,null,null,null,null,null,null,null,null,null,null,null,null,null,null,null,null,null,null,null,null,null,"第一面"]
[]
[]
[null,null,null,null,null,null,null,null,null,null,null,null,null,null,null,null,null,null,null,null,null,null,null,null,null,null,null,null,null,null,null,null,null,null,"第一面別紙：変更の概要"]
[]
[null,null,null,null,null,null,null,null,null,null,null,null,null,null,null,null,null,null,null,null,null,null,null,null,null,null,null,null,null,null,null,null,null,null,"※参考様式"]
[]
[null,null,null,null,null,null,null,"第二面",null,null,null,null,null,null,null,null,null,null,null,null,null,null,null,null,null,null,null,null,null,null,null,null,"第二面",null,null,null,null,null,null,null,null,null,null,null,null,null,null,null,"第二面以降は、当初の申請書の様式を利用して作成されても構いません。"]
[]
[]
[null,null,null,null,null,null,"　　",null,null,"第二面別紙：申請者",null,null,null,null,null,null,null,null,null,null,null,"第二面別紙は、それぞれが２又は３名以上の場合に記入してください。",null,null,null,null,null,null,null,null,null,"　　",null,null,"第二面別紙：申請者"]
[]
[]
[null,null,null,null,null,null,null,null,null,"第二面別紙：建築主",null,null,null,null,null,null,null,null,null,null,null,null,null,null,null,null,null,null,null,null,null,null,null,null,"第二面別紙：建築主"]
[]
[]
[null,null,null,null,null,null,null,null,null,"第二面別紙：設計者等",null,null,null,null,null,null,null,null,null,null,null,null,null,null,null,null,null,null,null,null,null,null,null,null,"第二面別紙：設計者等"]
[]
[]
[null,null,null,null,null,null,null,null,null,"第二面別紙：工事施工者",null,null,null,null,null,null,null,null,null,null,null,null,null,null,null,null,null,null,null,null,null,null,null,null,"第二面別紙：工事施工者"]
[]
[]
[null,null,null,null,null,null,null,"第三面",null,null,null,null,null,null,null,null,null,null,null,null,null,null,null,null,null,null,null,null,null,null,null,null,"第三面"]
[]
[]
[null,null,null,null,null,null,null,"第四面",null,null,null,null,null,null,null,null,null,null,null,null,null,null,null,null,null,null,null,null,null,null,null,null,"第四面"]
[]
[]
[null,null,null,null,null,null,null,null,null,"第四面別紙：参考情報",null,null,null,null,null,null,null,null,null,null,null,null,null,null,null,null,null,null,null,null,null,null,null,null,"第四面別紙：参考情報"]
[]
[]
[null,null,null,null,null,"設計内容（現況）説明書",null,null,null,null,null,null,null,null,null,null,null,"（別記参考様式第2号）",null,null,null,null,null,null,null,null,null,null,null,null,"設計内容（現況）説明書"]
[]
[]
[null,null,null,null,null,null,null,"第一面",null,null,null,null,null,null,null,null,null,null,null,null,null,null,null,null,null,null,null,null,null,null,null,null,"第一面"]
[]
[]
[null,null,null,null,null,null,null,"第二面",null,null,null,null,null,null,null,null,null,null,null,null,null,null,null,null,null,null,null,null,null,null,null,null,"第二面"]
[]
[]
[null,null,null,null,null,"住宅の｢ZEH｣、｢ｾﾞﾛｴﾈ相当｣に関する表示についての一次ｴﾈﾙｷﾞｰ計算書",null,null,null,null,null,null,null,null,null,null,null,null,null,null,null,null,null,null,null,null,null,null,null,null,"住宅の｢ZEH｣、｢ｾﾞﾛｴﾈ相当｣に関する表示についての一次ｴﾈﾙｷﾞｰ計算書"]
[]
[]
[]
[null,null,null,null,null,null,null,null,null,null,null,null,null,null,null,null,null,null,null,null,null,null,null,null,null,null,null,null,null,null,"※別エクセルで様式準備しています。"]
[]
[]
[null,null,null,null,null,"BELSに係る評価物件掲載承諾書",null,null,null,null,null,null,null,null,null,null,null,null,null,null,"（別記参考様式第３号）"]
[]
[]
[null,null,null,null,null,null,null,"第一面"]
[]
[]
[null,null,null,null,null,null,null,"第二面"]
[]
[]
[]
[null,null,"03軽微な変更"]
[]
[]
[]
[null,null,null,null,null,"BELSに係る評価軽微な変更に係る報告書"]
[]
[]
[null,null,null,null,null,null,null,"別紙：変更の概要"]
[]
[]
[]
[null,null,"04再交付"]
[]
[]
[]
[null,null,null,null,null,"BELSに係る評価再交付申請書"]
[]
[]
[null,null,null,null,null,null,null,"第一面"]
[]
[]
[null,null,null,null,null,null,null,"第二面"]
[]
[]
[]
[null,null,"05取下げ"]
[]
[]
[]
[null,null,null,null,null,"取下げ届"]
[]
[]
[null,null,null,null,null,null,null,null,null,null,null,null,null,null,null,null,null,null,null,null,null,null,null,null,null,null,null,null,null,null,null,null,null,null,null,null,null,null,null,null,null,null,null,null,null,null,null,null,null,null,null,"一般財団法人 岩手県建築住宅センター　TEL019-623-4420　BELS専用アドレス　bels@ikjc.or.jp"]

{"sheet":"入力シート","index":2,"n_rows":54,"n_cols":53,"rows_kept":54,"cut":false,"hidden":false,"merged":[[38,7,38,8],[38,9,38,11],[38,13,38,17],[38,18,38,20],[42,0,42,6],[42,8,42,27],[38,0,38,6],[10,8,10,27],[26,0,26,6],[26,8,26,27],[52,0,52,6],[53,0,53,6],[52,7,52,27],[53,7,53,27],[51,8,51,27],[48,0,48,6],[48,7,48,27],[50,7,50,27],[51,0,51,6],[49,7,49,14],[49,0,50,6],[43,0,43,6],[43,7,43,27],[44,0,44,6],[44,7,44,27],[39,0,39,6],[39,7,39,27],[40,0,41,6],[40,7,40,8],[40,9,40,12],[40,13,40,17],[40,18,40,21],[40,22,40,26],[41,7,41,27],[49,15,49,18],[49,19,49,20],[49,21,49,26],[5,0,6,6],[4,0,4,6],[10,0,10,6],[11,0,11,6],[12,0,12,6],[38,21,38,26],[22,0,22,6],[22,7,22,8],[22,21,22,26],[15,0,15,6],[15,7,15,27],[16,0,16,6],[16,8,16,27],[3,0,3,6],[3,7,3,27],[4,7,4,27],[5,7,6,27],[9,0,9,6],[9,7,9,27],[17,0,17,6],[17,7,17,27],[18,0,18,6],[11,7,11,27],[12,7,12,27],[18,7,18,27],[25,7,25,27],[28,0,28,6],[27,7,27,27],[28,7,28,27],[23,7,23,27],[23,0,23,6],[27,0,27,6],[24,7,24,8],[24,22,24,26],[0,0,1,27],[33,0,33,6],[34,0,34,6],[31,7,31,27],[33,7,33,27],[34,7,34,27],[32,0,32,6],[32,8,32,27],[31,0,31,6],[22,18,22,20],[22,9,22,11],[22,13,22,17],[24,0,25,6],[24,9,24,12],[24,13,24,17],[24,18,24,21]]}
["入力シート",null,null,null,null,null,null,null,null,null,null,null,null,null,null,null,null,null,null,null,null,null,null,null,null,null,null,null,null,null,null,null,null,null,null,null,null,null,null,null,null,null,null,null,null,null,null,null,null,null,null,null,"登録先"]
[]
["〇建築物の概要",null,null,null,null,null,null,null,null,null,null,null,null,null,null,null,null,null,null,null,null,null,null,null,null,null,null,null,null,null,null,null,null,null,null,null,null,null,null,null,null,null,null,null,null,null,null,null,null,null,null,null,"国土交通大臣"]
["建築物の名称",null,null,null,null,null,null,null,null,null,null,null,null,null,null,null,null,null,null,null,null,null,null,null,null,null,null,null,null,null,null,null,null,null,null,null,null,null,null,null,null,null,null,null,null,null,null,null,null,null,null,null,"建設大臣"]
["建築主名",null,null,null,null,null,null,null,null,null,null,null,null,null,null,null,null,null,null,null,null,null,null,null,null,null,null,null,null,null,null,null,null,null,null,null,null,null,null,null,null,null,null,null,null,null,null,null,null,null,null,null,"大臣"]
["建築場所\n（建築物の所在地）"]
[null,null,null,null,null,null,null,null,null,null,null,null,null,null,null,null,null,null,null,null,null,null,null,null,null,null,null,null,null,null,null,null,null,null,null,null,null,null,null,null,null,null,null,null,null,null,null,null,null,null,"岩手県",null,{"$f":"AY7&\"知事\"","v":"岩手県知事"}]
[null,null,null,null,null,null,null,null,null,null,null,null,null,null,null,null,null,null,null,null,null,null,null,null,null,null,null,null,null,null,null,null,null,null,null,null,null,null,null,null,null,null,null,null,null,null,null,null,null,null,"北海道",null,"北海道知事"]
["〇申請者1",null,null,null,null,null,null,null,null,null,null,null,null,null,null,null,null,null,null,null,null,null,null,null,null,null,null,null,null,null,null,null,null,null,null,null,null,null,null,null,null,null,null,null,null,null,null,null,null,null,"青森県",null,"青森県知事"]
["申請者名",null,null,null,null,null,null,null,null,null,null,null,null,null,null,null,null,null,null,null,null,null,null,null,null,null,null,null,null,null,null,null,null,null,null,null,null,null,null,null,null,null,null,null,null,null,null,null,null,null,"宮城県",null,"宮城県知事"]
["郵便番号",null,null,null,null,null,null,"〒",null,null,null,null,null,null,null,null,null,null,null,null,null,null,null,null,null,null,null,null,null,null,null,null,null,null,null,null,null,null,null,null,null,null,null,null,null,null,null,null,null,null,"秋田県",null,"秋田県知事"]
["住所",null,null,null,null,null,null,null,null,null,null,null,null,null,null,null,null,null,null,null,null,null,null,null,null,null,null,null,null,null,null,null,null,null,null,null,null,null,null,null,null,null,null,null,null,null,null,null,null,null,"山形県",null,"山形県知事"]
["電話番号",null,null,null,null,null,null,null,null,null,null,null,null,null,null,null,null,null,null,null,null,null,null,null,null,null,null,null,null,null,null,null,null,null,null,null,null,null,null,null,null,null,null,null,null,null,null,null,null,null,"福島県",null,"福島県知事"]
[null,null,null,null,null,null,null,null,null,null,null,null,null,null,null,null,null,null,null,null,null,null,null,null,null,null,null,null,null,null,null,null,null,null,null,null,null,null,null,null,null,null,null,null,null,null,null,null,null,null,"茨城県",null,"茨城県知事"]
["〇申請者2",null,null,null,null,null,null,null,null,null,null,null,null,null,null,null,null,null,null,null,null,null,null,null,null,null,null,null,null,null,null,null,null,null,null,null,null,null,null,null,null,null,null,null,null,null,null,null,null,null,"栃木県",null,"栃木県知事"]
["申請者名",null,null,null,null,null,null,null,null,null,null,null,null,null,null,null,null,null,null,null,null,null,null,null,null,null,null,null,null,null,null,null,null,null,null,null,null,null,null,null,null,null,null,null,null,null,null,null,null,null,"群馬県",null,"群馬県知事"]
["郵便番号",null,null,null,null,null,null,"〒",null,null,null,null,null,null,null,null,null,null,null,null,null,null,null,null,null,null,null,null,null,null,null,null,null,null,null,null,null,null,null,null,null,null,null,null,null,null,null,null,null,null,"埼玉県",null,"埼玉県知事"]
["住所",null,null,null,null,null,null,null,null,null,null,null,null,null,null,null,null,null,null,null,null,null,null,null,null,null,null,null,null,null,null,null,null,null,null,null,null,null,null,null,null,null,null,null,null,null,null,null,null,null,"千葉県",null,"千葉県知事"]
["電話番号",null,null,null,null,null,null,null,null,null,null,null,null,null,null,null,null,null,null,null,null,null,null,null,null,null,null,null,null,null,null,null,null,null,null,null,null,null,null,null,null,null,null,null,null,null,null,null,null,null,"東京都",null,"東京都知事"]
["※申請者2が申請者1と住所、電話番号が同じ場合は、左のコピー①ボタンを押してください。➡",null,null,null,null,null,null,null,null,null,null,null,null,null,null,null,null,null,null,null,null,null,null,null,null,null,null,null,null,null,null,null,null,null,null,null,null,null,null,null,null,null,null,null,null,null,null,null,null,null,"神奈川県",null,"神奈川県知事"]
[null,null,null,null,null,null,null,null,null,null,null,null,null,null,null,null,null,null,null,null,null,null,null,null,null,null,null,null,null,null,null,null,null,null,null,null,null,null,null,null,null,null,null,null,null,null,null,null,null,null,"新潟県",null,"新潟県知事"]
["〇代理人（代理者）",null,null,null,null,null,null,null,null,null,null,null,null,null,null,null,null,null,null,null,null,null,null,null,null,null,null,null,null,null,null,null,null,null,null,null,null,null,null,null,null,null,null,null,null,null,null,null,null,null,"富山県",null,"富山県知事"]
["資格",null,null,null,null,null,null,null,null,"建築士",null,null,null,null,null,null,null,null,"登録第",null,null,null,null,null,null,null,null,"号",null,null,null,null,null,null,null,null,null,null,null,null,null,null,null,null,null,null,null,null,null,null,"石川県",null,"石川県知事"]
["氏名",null,null,null,null,null,null,null,null,null,null,null,null,null,null,null,null,null,null,null,null,null,null,null,null,null,null,null,null,null,null,null,null,null,null,null,null,null,null,null,null,null,null,null,null,null,null,null,null,null,"福井県",null,"福井県知事"]
["名称\n（建築士事務所名）",null,null,null,null,null,null,null,null,"建築士事務所",null,null,null,null,null,null,null,null,"知事登録第",null,null,null,null,null,null,null,null,"号",null,null,null,null,null,null,null,null,null,null,null,null,null,null,null,null,null,null,null,null,null,null,"山梨県",null,"山梨県知事"]
[null,null,null,null,null,null,null,null,null,null,null,null,null,null,null,null,null,null,null,null,null,null,null,null,null,null,null,null,null,null,null,null,null,null,null,null,null,null,null,null,null,null,null,null,null,null,null,null,null,null,"長野県",null,"長野県知事"]
["郵便番号",null,null,null,null,null,null,"〒",null,null,null,null,null,null,null,null,null,null,null,null,null,null,null,null,null,null,null,null,null,null,null,null,null,null,null,null,null,null,null,null,null,null,null,null,null,null,null,null,null,null,"岐阜県",null,"岐阜県知事"]
["住所",null,null,null,null,null,null,null,null,null,null,null,null,null,null,null,null,null,null,null,null,null,null,null,null,null,null,null,null,null,null,null,null,null,null,null,null,null,null,null,null,null,null,null,null,null,null,null,null,null,"静岡県",null,"静岡県知事"]
["電話番号",null,null,null,null,null,null,null,null,null,null,null,null,null,null,null,null,null,null,null,null,null,null,null,null,null,null,null,null,null,null,null,null,null,null,null,null,null,null,null,null,null,null,null,null,null,null,null,null,null,"愛知県",null,"愛知県知事"]
[null,null,null,null,null,null,null,null,null,null,null,null,null,null,null,null,null,null,null,null,null,null,null,null,null,null,null,null,null,null,null,null,null,null,null,null,null,null,null,null,null,null,null,null,null,null,null,null,null,null,"三重県",null,"三重県知事"]
["〇建築主等",null,null,null,null,null,null,null,null,null,null,null,null,null,null,null,null,null,null,null,null,null,null,null,null,null,null,null,null,null,null,null,null,null,null,null,null,null,null,null,null,null,null,null,null,null,null,null,null,null,"滋賀県",null,"滋賀県知事"]
["名称",null,null,null,null,null,null,null,null,null,null,null,null,null,null,null,null,null,null,null,null,null,null,null,null,null,null,null,null,null,null,null,null,null,null,null,null,null,null,null,null,null,null,null,null,null,null,null,null,null,"京都府",null,"京都府知事"]
["郵便番号",null,null,null,null,null,null,"〒",null,null,null,null,null,null,null,null,null,null,null,null,null,null,null,null,null,null,null,null,null,null,null,null,null,null,null,null,null,null,null,null,null,null,null,null,null,null,null,null,null,null,"大阪府",null,"大阪府知事"]
["住所",null,null,null,null,null,null,null,null,null,null,null,null,null,null,null,null,null,null,null,null,null,null,null,null,null,null,null,null,null,null,null,null,null,null,null,null,null,null,null,null,null,null,null,null,null,null,null,null,null,"兵庫県",null,"兵庫県知事"]
["電話番号",null,null,null,null,null,null,null,null,null,null,null,null,null,null,null,null,null,null,null,null,null,null,null,null,null,null,null,null,null,null,null,null,null,null,null,null,null,null,null,null,null,null,null,null,null,null,null,null,null,"奈良県",null,"奈良県知事"]
["※建築主等が申請者1と同じ場合は、左のコピー②ボタンを押してください。➡",null,null,null,null,null,null,null,null,null,null,null,null,null,null,null,null,null,null,null,null,null,null,null,null,null,null,null,null,null,null,null,null,null,null,null,null,null,null,null,null,null,null,null,null,null,null,null,null,null,"和歌山県",null,"和歌山県知事"]
[null,null,null,null,null,null,null,null,null,null,null,null,null,null,null,null,null,null,null,null,null,null,null,null,null,null,null,null,null,null,null,null,null,null,null,null,null,null,null,null,null,null,null,null,null,null,null,null,null,null,"鳥取県",null,"鳥取県知事"]
["〇設計者等",null,null,null,null,null,null,null,null,null,null,null,null,null,null,null,null,null,null,null,null,null,null,null,null,null,null,null,null,null,null,null,null,null,null,null,null,null,null,null,null,null,null,null,null,null,null,null,null,null,"島根県",null,"島根県知事"]
["資格",null,null,null,null,null,null,null,null,"建築士",null,null,null,null,null,null,null,null,"登録第",null,null,null,null,null,null,null,null,"号",null,null,null,null,null,null,null,null,null,null,null,null,null,null,null,null,null,null,null,null,null,null,"岡山県",null,"岡山県知事"]
["氏名",null,null,null,null,null,null,null,null,null,null,null,null,null,null,null,null,null,null,null,null,null,null,null,null,null,null,null,null,null,null,null,null,null,null,null,null,null,null,null,null,null,null,null,null,null,null,null,null,null,"広島県",null,"広島県知事"]
["名称\n（建築士事務所名）",null,null,null,null,null,null,null,null,"建築士事務所",null,null,null,null,null,null,null,null,"知事登録第",null,null,null,null,null,null,null,null,"号",null,null,null,null,null,null,null,null,null,null,null,null,null,null,null,null,null,null,null,null,null,null,"山口県",null,"山口県知事"]
[null,null,null,null,null,null,null,null,null,null,null,null,null,null,null,null,null,null,null,null,null,null,null,null,null,null,null,null,null,null,null,null,null,null,null,null,null,null,null,null,null,null,null,null,null,null,null,null,null,null,"徳島県",null,"徳島県知事"]
["郵便番号",null,null,null,null,null,null,"〒",null,null,null,null,null,null,null,null,null,null,null,null,null,null,null,null,null,null,null,null,null,null,null,null,null,null,null,null,null,null,null,null,null,null,null,null,null,null,null,null,null,null,"香川県",null,"香川県知事"]
["住所",null,null,null,null,null,null,null,null,null,null,null,null,null,null,null,null,null,null,null,null,null,null,null,null,null,null,null,null,null,null,null,null,null,null,null,null,null,null,null,null,null,null,null,null,null,null,null,null,null,"愛媛県",null,"愛媛県知事"]
["電話番号",null,null,null,null,null,null,null,null,null,null,null,null,null,null,null,null,null,null,null,null,null,null,null,null,null,null,null,null,null,null,null,null,null,null,null,null,null,null,null,null,null,null,null,null,null,null,null,null,null,"高知県",null,"高知県知事"]
["※設計者等が代理人と同じ場合は、左のコピー③ボタンを押してください。➡",null,null,null,null,null,null,null,null,null,null,null,null,null,null,null,null,null,null,null,null,null,null,null,null,null,null,null,null,null,null,null,null,null,null,null,null,null,null,null,null,null,null,null,null,null,null,null,null,null,"福岡県",null,"福岡県知事"]
[null,null,null,null,null,null,null,null,null,null,null,null,null,null,null,null,null,null,null,null,null,null,null,null,null,null,null,null,null,null,null,null,null,null,null,null,null,null,null,null,null,null,null,null,null,null,null,null,null,null,"佐賀県",null,"佐賀県知事"]
["〇工事施工者",null,null,null,null,null,null,null,null,null,null,null,null,null,null,null,null,null,null,null,null,null,null,null,null,null,null,null,null,null,null,null,null,null,null,null,null,null,null,null,null,null,null,null,null,null,null,null,null,null,"長崎県",null,{"$f":"AY48&\"知事\"","v":"長崎県知事"}]
["氏名又は名称",null,null,null,null,null,null,null,null,null,null,null,null,null,null,null,null,null,null,null,null,null,null,null,null,null,null,null,null,null,null,null,null,null,null,null,null,null,null,null,null,null,null,null,null,null,null,null,null,null,"熊本県",null,"熊本県知事"]
["営業所名",null,null,null,null,null,null,"建設業の許可（",null,null,null,null,null,null,null,"岩手県知事",null,null,null,"）第",null,null,null,null,null,null,null,"号",null,null,null,null,null,null,null,null,null,null,null,null,null,null,null,null,null,null,null,null,null,null,"大分県",null,"大分県知事"]
[null,null,null,null,null,null,null,null,null,null,null,null,null,null,null,null,null,null,null,null,null,null,null,null,null,null,null,null,null,null,null,null,null,null,null,null,null,null,null,null,null,null,null,null,null,null,null,null,null,null,"宮崎県",null,"宮崎県知事"]
["郵便番号",null,null,null,null,null,null,"〒",null,null,null,null,null,null,null,null,null,null,null,null,null,null,null,null,null,null,null,null,null,null,null,null,null,null,null,null,null,null,null,null,null,null,null,null,null,null,null,null,null,null,"鹿児島県",null,"鹿児島県知事"]
["住所",null,null,null,null,null,null,null,null,null,null,null,null,null,null,null,null,null,null,null,null,null,null,null,null,null,null,null,null,null,null,null,null,null,null,null,null,null,null,null,null,null,null,null,null,null,null,null,null,null,"沖縄県",null,"沖縄県知事"]
["電話番号"]

{"sheet":"BELS連絡票","index":3,"n_rows":80,"n_cols":43,"rows_kept":80,"cut":false,"hidden":false,"merged":[[60,4,60,9],[60,16,60,21],[54,0,55,27],[58,4,58,24],[58,25,58,27],[56,4,56,27],[57,4,57,27],[59,4,59,9],[59,16,59,27],[77,6,77,7],[77,26,77,27],[78,26,78,27],[79,26,79,27],[74,6,74,7],[74,26,74,27],[75,6,75,7],[75,26,75,27],[76,6,76,7],[76,26,76,27],[73,26,73,27],[68,6,68,7],[68,8,70,8],[68,12,70,12],[68,26,68,27],[69,6,69,7],[69,26,69,27],[70,6,70,7],[70,26,70,27],[71,6,71,7],[71,26,71,27],[72,6,72,7],[72,26,72,27],[73,6,73,7],[64,0,64,27],[67,0,67,5],[67,6,67,7],[67,8,67,19],[67,20,67,25],[67,26,67,27],[18,0,18,27],[19,2,19,24],[19,26,19,27],[20,0,21,0],[27,18,41,18],[22,0,41,0],[14,4,14,27],[15,4,15,9],[15,16,15,27],[16,4,16,9],[16,16,16,21],[11,0,11,27],[12,4,12,27],[5,0,6,0],[5,15,7,15],[13,4,13,27],[5,22,7,27],[2,22,4,27],[0,22,0,27],[1,22,1,27],[1,0,2,4],[9,0,10,27]]}
["（一財）岩手県建築住宅センター",null,null,null,null,null,null,null,null,null,null,null,null,null,null,null,null,null,null,null,null,null,20190901,null,null,null,null,null,null,null,null,null,null,null,null,null,null,null,null,null,null,"月","日"]
["事前協議",null,null,null,null,"事前協議番号：",null,null,null,null,null,null,null,null,null,null,null,null,null,null,null,null,"交付希望日"]
[null,null,null,null,null,"受付日：平成　　　年　　　月　　　日　　担当者：",null,null,null,null,null,null,null,null,null,null,null,null,null,null,null,null,null,null,null,null,null,null,null,null,null,null,null,null,null,null,null,null,null,null,null,1,1]
["連絡日：平成　　　年　　　月　　　日　⇒　訂正日：平成　　　年　　　月　　　日",null,null,null,null,null,null,null,null,null,null,null,null,null,null,null,null,null,null,null,null,null,null,null,null,null,null,null,null,null,null,null,null,null,null,null,null,null,null,null,null,2,2]
["連絡日：平成　　　年　　　月　　　日　⇒　訂正日：平成　　　年　　　月　　　日",null,null,null,null,null,null,null,null,null,null,null,null,null,null,null,null,null,null,null,null,null,null,null,null,null,null,null,null,null,null,null,null,null,null,null,null,null,null,null,null,3,3]
["C","□","確認併願申請",null,null,null,"2P","確認番号：H　　－1－　　　　－　　",null,null,null,null,null,null,null,"複数棟","□","同時に2戸以上",null,null,null,null,null,null,null,null,null,null,null,null,null,null,null,null,null,null,null,null,null,null,null,4,4]
[null,null,null,null,null,null,null,null,null,null,null,null,null,null,null,null,"□","外皮仕様同一",null,null,null,null,null,null,null,null,null,null,null,null,null,null,null,null,null,null,null,null,null,null,null,5,5]
[null,"□","設計評価同時申請",null,null,null,null,"評価番号：H　　－9－",null,null,null,null,null,null,null,null,"□","設備仕様同一",null,null,null,null,null,null,null,null,null,null,null,null,null,null,null,null,null,null,null,null,null,null,null,6,6]
["※上記欄は当センターで記載しますので、ご記入不要です。",null,null,null,null,null,null,null,null,null,null,null,null,null,null,null,null,null,null,null,null,null,null,null,null,null,null,null,null,null,null,null,null,null,null,null,null,null,null,null,null,7,7]
["BELS評価 連絡票",null,null,null,null,null,null,null,null,null,null,null,null,null,null,null,null,null,null,null,null,null,null,null,null,null,null,null,null,null,null,null,null,null,null,null,null,null,null,null,null,8,8]
[null,null,null,null,null,null,null,null,null,null,null,null,null,null,null,null,null,null,null,null,null,null,null,null,null,null,null,null,null,null,null,null,null,null,null,null,null,null,null,null,null,9,9]
["●連絡先の必要事項を記入してください●",null,null,null,null,null,null,null,null,null,null,null,null,null,null,null,null,null,null,null,null,null,null,null,null,null,null,null,null,null,null,null,null,null,null,null,null,null,null,null,null,10,10]
["［建築場所］",null,null,null,{"$f":"IF(入力シート!H6=\"\",\"\",入力シート!H6)","v":""},null,null,null,null,null,null,null,null,null,null,null,null,null,null,null,null,null,null,null,null,null,null,null,null,null,null,null,null,null,null,null,null,null,null,null,null,11,11]
["［申請者名］",null,null,null,{"$f":"IF(入力シート!H10=\"\",\"\",入力シート!H10)","v":""},null,null,null,null,null,null,null,null,null,null,null,null,null,null,null,null,null,null,null,null,null,null,null,null,null,null,null,null,null,null,null,null,null,null,null,null,12,12]
["［会 社 名］",null,null,null,null,null,null,null,null,null,null,null,null,null,null,null,null,null,null,null,null,null,null,null,null,null,null,null,null,null,null,null,null,null,null,null,null,null,null,null,null,null,13]
["［担当者名］",null,null,null,null,null,null,null,null,null,"［E-mailアドレス］",null,null,null,null,null,null,null,null,null,null,null,null,null,null,null,null,null,null,null,null,null,null,null,null,null,null,null,null,null,null,null,14]
["［電話番号］",null,null,null,null,null,null,null,null,null,"［　FAX　番号　］",null,null,null,null,null,null,null,null,null,null,null,null,null,null,null,null,null,null,null,null,null,null,null,null,null,null,null,null,null,null,null,15]
[null,null,null,null,null,null,null,null,null,null,null,null,null,null,null,null,null,null,null,null,null,null,null,null,null,null,null,null,null,null,null,null,null,null,null,null,null,null,null,null,null,null,16]
["●設計者チェック欄に、提出した書類を ”☑” でチェックしてください●",null,null,null,null,null,null,null,null,null,null,null,null,null,null,null,null,null,null,null,null,null,null,null,null,null,null,null,null,null,null,null,null,null,null,null,null,null,null,null,null,null,17]
["部数",null,"必要な書類及び図書名　",null,null,null,null,null,null,null,null,null,null,null,null,null,null,null,null,null,null,null,null,null,null,null,"センター",null,null,null,null,null,null,null,null,null,null,null,null,null,null,null,18]
["1部",null,"BELS事前協議連絡票",null,null,null,null,null,null,null,null,null,null,null,null,null,null,null,null,null,null,null,null,null,null,null,"□",null,null,null,null,null,null,null,null,null,null,null,null,null,null,null,19]
[null,null,"委任状",null,null,null,null,null,null,null,null,null,null,"※代理人の場合",null,null,null,null,null,null,null,null,null,null,null,null,"□",null,null,null,null,null,null,null,null,null,null,null,null,null,null,null,20]
["2部",null,"BELSに係る評価申請書（別記様式第7号）",null,null,null,null,null,null,null,null,null,null,"※1～4面",null,null,null,null,null,null,null,null,null,null,null,null,"□",null,null,null,null,null,null,null,null,null,null,null,null,null,null,null,21]
[null,null,"BELSに係る評価物件 掲載承諾書",null,null,null,null,null,null,null,null,null,null,"※1～2面",null,null,null,null,null,null,null,null,null,null,null,null,"□",null,null,null,null,null,null,null,null,null,null,null,null,null,null,null,22]
[null,null,"設計内容（現況）説明書",null,null,null,null,null,null,null,null,null,null,"※1～2面",null,null,null,null,null,null,null,null,null,null,null,null,"□",null,null,null,null,null,null,null,null,null,null,null,null,null,null,null,23]
[null,null,"「ZEH」、「ｾﾞﾛｴﾈ相当」の一次ｴﾈﾙｷﾞｰ計算書",null,null,null,null,null,null,null,null,null,null,"※希望する場合",null,null,null,null,null,null,null,null,null,null,null,null,"□",null,null,null,null,null,null,null,null,null,null,null,null,null,null,null,24]
[null,null,null,null,null,null,null,null,null,null,null,null,null,null,null,null,null,null,null,null,null,null,null,null,null,null,null,null,null,null,null,null,null,null,null,null,null,null,null,null,null,null,25]
[null,null,"一次ｴﾈﾙｷﾞｰ消費量計算結果（住宅）",null,null,null,null,null,null,null,null,null,null,null,null,null,null,null,"評価書等の写し","[断熱等性能]",null,null,null,null,null,null,"□",null,null,null,null,null,null,null,null,null,null,null,null,null,null,null,26]
[null,null,"性能の証明となる各種資料",null,null,null,null,null,null,null,null,null,null,null,null,null,null,null,null,null,"評価性能（5-1）",null,null,null,null,null,"□","□",null,null,null,null,null,null,null,null,null,null,null,null,null,null,27]
[null,null,"外皮計算書",null,null,null,null,null,null,null,null,null,null,null,null,null,null,null,null,null,"長期優良",null,null,null,null,null,"□","□",null,null,null,null,null,null,null,null,null,null,null,null,null,null,28]
[null,null,"付近見取り図",null,null,null,null,null,null,null,null,null,null,null,null,null,null,null,null,null,"フラット35S‐B",null,null,null,null,null,"□","□",null,null,null,null,null,null,null,null,null,null,null,null,null,null,29]
[null,null,"配置図",null,null,null,null,null,null,null,null,null,null,null,null,null,null,null,null,null,"現金取得（断熱等級）",null,null,null,null,null,"□","□",null,null,null,null,null,null,null,null,null,null,null,null,null,null,30]
[null,null,"仕上表",null,null,null,null,null,null,null,null,null,null,null,null,null,null,null,null,null,"性能証明（断熱等級）",null,null,null,null,null,"□","□",null,null,null,null,null,null,null,null,null,null,null,null,null,null,31]
[null,null,"設備機器表",null,null,null,null,null,null,"※他の図書に明示したときは、",null,null,null,null,null,null,null,null,null,"[一次エネ]",null,null,null,null,null,null,"□"]
[null,null,"各階平面図",null,null,null,null,null,null,"　当該図書の添付不要",null,null,null,null,null,null,null,null,null,null,"評価性能（5-2）",null,null,null,null,null,"□","□"]
[null,null,"床面積求積図",null,null,null,null,null,null,null,null,null,null,null,null,null,null,null,null,null,"低炭素",null,null,null,null,null,"□","□"]
[null,null,"立面図",null,null,null,null,null,null,null,null,null,null,null,null,null,null,null,null,null,"フラット35S‐A",null,null,null,null,null,"□","□"]
[null,null,"矩計図または断面図",null,null,null,null,null,null,null,null,null,null,null,null,null,null,null,null,null,"現金取得（一次エネ）",null,null,null,null,null,"□","□"]
[null,null,"各部詳細図",null,null,null,null,null,null,null,null,null,null,null,null,null,null,null,null,null,"性能証明（一次エネ）",null,null,null,null,null,"□","□"]
[null,null,"各種計算書",null,null,null,null,null,null,null,null,null,null,null,null,null,null,null,null,"※当センターが交付したものに限る",null,null,null,null,null,null,"□"]
[null,null,null,null,null,null,null,null,null,null,null,null,null,null,null,null,null,null,null,"※写しの添付により、",null,null,null,null,null,null,"□"]
[null,null,null,null,null,null,null,null,null,null,null,null,null,null,null,null,null,null,null,"　左欄の図書の添付が省略可",null,null,null,null,null,null,"□"]
[]
[]
[]
[]
[]
[]
[]
[]
[]
[]
[]
[]
["BELS表示プレート注文書"]
[]
["［建築場所］",null,null,null,{"$f":"E13","v":""}]
["［申請者名］",null,null,null,{"$f":"E14","v":""}]
["［会 社 名］",null,null,null,{"$f":"IF(E15=\"\",\"\",E15)","v":""},null,null,null,null,null,null,null,null,null,null,null,null,null,null,null,null,null,null,null,null,"㊞"]
["［担当者名］",null,null,null,{"$f":"IF(E16=\"\",\"\",E16)","v":""},null,null,null,null,null,"［E-mailアドレス］",null,null,null,null,null,{"$f":"IF(Q16=\"\",\"\",Q16)","v":""}]
["［電話番号］",null,null,null,{"$f":"IF(E17=\"\",\"\",E17)","v":""},null,null,null,null,null,"［　FAX　番号　］",null,null,null,null,null,{"$f":"IF(Q17=\"\",\"\",Q17)","v":""}]
[]
[]
[]
["●BELS表示プレート等の希望有無について、該当に”☑” でチェックし、数量を記入してください●"]
[null,null,"希望しない",null,null,null,null,null,null,null,null,null,null,null,null,null,null,null,"※プレート代等は、別途料金を頂きます。"]
[null,null,"希望する（別紙の「BELSプレートアイテム一覧」を確認のうえ、以下に☑と数量を記入してください。）"]
["製品項目",null,null,null,null,null,"サイズ",null,"表示方法",null,null,null,null,null,null,null,null,null,null,null,"フレーム",null,null,null,null,null,"数量"]
["室内用カウンター置きプレート",null,null,null,null,null,"Ａ６",null,"ステンレス","選択不可",null,null,"アクリル",null,"A:表貼り",null,null,"B:立体",null,null,"なし"]
[null,null,"材質：ステンレス",null,null,null,"Ｂ６",null,null,"選択不可",null,null,null,null,"A:表貼り",null,null,"B:立体",null,null,"なし"]
[null,null,"材質：透明アクリル",null,null,null,"Ｂ５",null,null,"選択不可",null,null,null,null,"A:表貼り",null,null,"B:立体",null,null,"なし"]
["屋内用プレート",null,null,null,null,null,"Ａ４",null,null,null,null,null,null,null,"A:表貼り",null,null,"B:立体",null,null,"なし"]
["（材質：透明アクリル）",null,null,null,null,null,"Ａ３",null,null,null,null,null,null,null,"A:表貼り",null,null,"B:立体",null,null,"なし"]
["屋外対応プレート",null,null,null,null,null,"Ａ４",null,null,"選択不可",null,null,null,null,null,null,null,null,null,null,null,"シルバー",null,null,"ホワイト"]
["（材質：透明アクリル)",null,null,null,null,null,"Ａ３",null,null,"選択不可",null,null,null,null,null,null,null,null,null,null,null,"シルバー",null,null,"ホワイト"]
["シール",null,null,null,null,null,"Ａ６",null,null,"選択不可",null,null,null,null,null,null,null,null,null,null,"なし"]
["（材質：白ＰＥＴ",null,null,null,null,null,"Ｂ６",null,null,"選択不可",null,null,null,null,null,null,null,null,null,null,"なし"]
["　　　、ラミネート加工）",null,null,null,null,null,"Ｂ５",null,null,"選択不可",null,null,null,null,null,null,null,null,null,null,"なし"]
[null,null,null,null,null,null,"省略版横長タイプ",null,null,null,"W100×Ｈ40"]
[null,null,null,null,null,null,"省略版四角タイプ",null,null,null,"W59×Ｈ47"]

{"sheet":"委任状","index":4,"n_rows":56,"n_cols":26,"rows_kept":56,"cut":false,"hidden":false,"merged":[[49,13,51,24],[52,13,54,24],[55,13,57,24],[29,2,30,17],[26,2,26,17],[43,13,45,24],[46,13,48,24],[32,22,32,23],[32,19,32,20],[32,16,32,17],[32,14,32,15],[2,0,2,26],[37,13,39,24],[34,13,36,24],[40,13,42,24],[13,0,13,26],[17,0,19,26],[7,5,7,17]]}
[]
[]
["委　任　状"]
[]
[]
[]
[]
[null,null,"私は",null,null,{"$f":"CONCATENATE(入力シート!H26,\" \",入力シート!H24)","v":" "},null,null,null,null,null,null,null,null,null,null,null,null,null,"を代理人と定め"]
[]
[null,"下記に関する権限を委任します。"]
[]
[]
[]
["記"]
[]
[]
[]
["　建築物省エネルギー性能表示制度に基づく、ＢＥＬＳに係る評価申請業務に関する手続き、提出図書の作成、訂正及び審査機関から交付される文書の受領"]
[]
[]
[]
[]
[]
[]
[]
[null,"建築物の名称"]
[null,null,{"$f":"入力シート!H4","v":0}]
[]
[null,"建築物の所在地"]
[null,null,{"$f":"入力シート!H6","v":0}]
[]
[]
[null,null,null,null,null,null,null,null,null,null,null,null,null,null,"令和",null,null,null,"年",null,null,"月",null,null,"日"]
[]
[null,null,null,null,null,null,null,null,null,null,"住　所",null,null,{"$f":"IF(入力シート!H12=\"\",\"\",入力シート!H12)","v":""}]
[]
[]
[null,null,null,null,null,null,null,null,null,null,"氏　名",null,null,{"$f":"IF(入力シート!H10=\"\",\"\",入力シート!H10)","v":""},null,null,null,null,null,null,null,null,null,null,null,"印"]
[]
[]
[null,null,null,null,null,null,null,null,null,null,{"$f":"IF(N41=\"\",\"\",\"住　所\")","v":""},null,null,{"$f":"IF(入力シート!H18=\"\",\"\",入力シート!H18)","v":""}]
[]
[]
[null,null,null,null,null,null,null,null,null,null,{"$f":"IF(N44=\"\",\"\",\"氏　名\")","v":""},null,null,{"$f":"IF(入力シート!H16=\"\",\"\",入力シート!H16)","v":""},null,null,null,null,null,null,null,null,null,null,null,{"$f":"IF(N44=\"\",\"\",\"印\")","v":""}]
[]
[]
[null,null,null,null,null,null,null,null,null,null,{"$f":"IF(N47=\"\",\"\",\"住　所\")","v":""},null,null,{"$f":"IF('2-別 (申)'!J8=\"\",\"\",'2-別 (申)'!J8)","v":""},null,null,null,null,null,null,null,null,null,null,null,{"$f":"IF(N47=\"\",\"\",\"印\")","v":""}]
[]
[]
[null,null,null,null,null,null,null,null,null,null,{"$f":"IF(N50=\"\",\"\",\"氏　名\")","v":""},null,null,{"$f":"IF('2-別 (申)'!J5=\"\",\"\",'2-別 (申)'!J5)","v":""},null,null,null,null,null,null,null,null,null,null,null,{"$f":"IF(N50=\"\",\"\",\"印\")","v":""}]
[]
[]
[null,null,null,null,null,null,null,null,null,null,{"$f":"IF(N53=\"\",\"\",\"住　所\")","v":""},null,null,{"$f":"IF('2-別 (申)'!J26=\"\",\"\",'2-別 (申)'!J26)","v":""},null,null,null,null,null,null,null,null,null,null,null,{"$f":"IF(N53=\"\",\"\",\"印\")","v":""}]
[]
[]
[null,null,null,null,null,null,null,null,null,null,{"$f":"IF(N56=\"\",\"\",\"氏　名\")","v":""},null,null,{"$f":"IF('2-別 (申)'!J23=\"\",\"\",'2-別 (申)'!J23)","v":""},null,null,null,null,null,null,null,null,null,null,null,{"$f":"IF(N56=\"\",\"\",\"印\")","v":""}]

{"sheet":"評価申請書1面","index":5,"n_rows":59,"n_cols":27,"rows_kept":59,"cut":false,"hidden":false,"merged":[[58,0,61,26],[5,0,5,26],[6,0,6,26],[21,14,23,25],[24,14,26,25],[27,14,29,25],[30,14,32,25],[50,0,56,26],[34,1,36,25],[10,18,10,19],[10,21,10,22],[10,24,10,25],[10,16,10,17]]}
["（別記様式第７号）"]
[]
[]
[]
[]
["ＢＥＬＳに係る評価申請書"]
["（第一面）"]
[]
[]
[]
[null,null,null,null,null,null,null,null,null,null,null,null,null,null,null,null,"令和",null,null,null,"年",null,null,"月",null,null,"日"]
[]
[]
[]
[null,"一般財団法人 岩手県建築住宅センター"]
[null,null,null,"理事長　　金 田　義 徳　様"]
[]
[]
[null,null,null,null,null,null,null,null,null,null,null,null,null,"申請者の氏名又は名称"]
[null,null,null,null,null,null,null,null,null,null,null,null,null,"（法人にあってはその代表者の氏名）"]
[]
[null,null,null,null,null,null,null,null,null,null,null,null,null,null,{"$f":"IF(入力シート!H10=\"\",\"\",入力シート!H10)","v":""},null,null,null,null,null,null,null,null,null,null,null,"印"]
[]
[]
[null,null,null,null,null,null,null,null,null,null,null,null,null,null,{"$f":"IF(入力シート!H16=\"\",\"\",入力シート!H16)","v":""},null,null,null,null,null,null,null,null,null,null,null,{"$f":"IF(O25=\"\",\"\",\"印\")","v":""}]
[]
[]
[null,null,null,null,null,null,null,null,null,null,null,null,null,null,{"$f":"IF('2-別 (申)'!J14=\"\",\"\",'2-別 (申)'!J14)","v":""},null,null,null,null,null,null,null,null,null,null,null,{"$f":"IF(O28=\"\",\"\",\"印\")","v":""}]
[]
[]
[null,null,null,null,null,null,null,null,null,null,null,null,null,null,{"$f":"IF('2-別 (申)'!J23=\"\",\"\",'2-別 (申)'!J23)","v":""},null,null,null,null,null,null,null,null,null,null,null,{"$f":"IF(O31=\"\",\"\",\"印\")","v":""}]
[]
[]
[]
[null,"　ＢＥＬＳに係る評価の申請をします。この申請書及び添付図書に記載の事項は、事実に相違ありません。"]
[]
[]
[]
[]
[]
[]
[]
[]
[]
[]
[]
["※受付欄",null,null,null,null,null,null,null,null,null,"※料金欄"]
[null,null,null,"年",null,null,"月",null,null,"日"]
["第",null,null,null,null,null,null,null,null,"号"]
["申請受理者印",null,null,null,null,null,null,null,null,null,null,null,null,null,null,null,null,null,null,null,null,null,null,null,null,"円"]
["＜評価機関からのお願い＞\n　BELSに係る評価申請の内容について、個人や個別の建築物が特定されない統計情報として、国土交通省に提供することがございますので、あらかじめご了承のほどお願い申し上げます。\n　また、BELS評価書取得物件は、申請書・評価書に記載されている項目について、（一社）住宅性能評価・表示協会ホームページにて、BELS事例紹介として評価結果等の公表をさせていただきます。ただし、個人や個別の建築物が特定される情報については、掲載承諾書にて公開の承諾が得られた場合に限ります。"]
[]
[]
[]
[]
[]
[]
[]
["（注意）　　　　　　　　　　　　　　　　　　　　　　　　　　　　　　　　　　　　　　\n  ① 申請者が法人である場合には、代表者の氏名を併せて記載してください。\n  ② 申請者の氏名（法人にあってはその代表者の氏名）の記載を自署で行う場合においては、\n　　 押印を省略することができます。"]

{"sheet":"2面","index":6,"n_rows":75,"n_cols":34,"rows_kept":75,"cut":false,"hidden":false,"merged":[[26,10,26,25],[34,13,34,16],[34,19,34,24],[37,14,37,16],[37,9,37,10],[37,20,37,24],[51,9,52,25],[53,9,53,25],[49,9,49,25],[42,9,42,25],[45,9,45,25],[46,9,47,25],[48,13,48,16],[48,19,48,24],[6,10,6,25],[17,10,17,25],[23,9,23,25],[0,0,0,26],[4,9,5,25],[7,9,8,25],[9,9,9,25],[3,9,3,25],[12,9,12,10],[12,13,12,16],[12,19,12,24],[13,9,13,25],[18,9,19,25],[20,9,20,25],[14,9,14,25],[15,9,15,10],[39,10,39,25],[50,10,50,25],[15,11,15,13],[37,11,37,13],[48,17,48,18],[15,14,15,16],[15,20,15,24],[16,9,16,25],[38,9,38,25],[34,9,34,10],[40,9,41,25],[35,9,35,25],[36,9,36,25],[27,9,28,25],[29,9,29,25],[24,9,25,25]]}
["（第二面）"]
["申請者等の概要"]
["【１.申請者】"]
[null,"【氏名又は名称のﾌﾘｶﾞﾅ】",null,null,null,null,null,null,null,{"$f":"PHONETIC(入力シート!$H$10)","v":""}]
[null,"【氏名又は名称】",null,null,null,null,null,null,null,{"$f":"入力シート!$H$10","v":0}]
[]
[null,"【郵便番号】",null,null,null,null,null,null,null,"〒",{"$f":"入力シート!$I$11","v":0}]
[null,"【住所】",null,null,null,null,null,null,null,{"$f":"入力シート!$H$12","v":0}]
[]
[null,"【電話番号】",null,null,null,null,null,null,null,{"$f":"入力シート!$H$13","v":0}]
[]
["【２.代理者】"]
[null,"【資格】",null,null,null,null,null,null,null,{"$f":"入力シート!H23","v":0},null,"建築士",null,{"$f":"入力シート!N23","v":0},null,null,null,"登録第",null,{"$f":"入力シート!V23","v":0},null,null,null,null,null,"号",null,null,null,null,null,"登録先（知事無し）",null,"登録先"]
[null,"【氏名のﾌﾘｶﾞﾅ】",null,null,null,null,null,null,null,{"$f":"PHONETIC(入力シート!H24)","v":""}]
[null,"【氏名】",null,null,null,null,null,null,null,{"$f":"入力シート!H24","v":0},null,null,null,null,null,null,null,null,null,null,null,null,null,null,null,null,null,null,null,"1級",null,"岩手県",null,"国土交通大臣"]
[null,"【名称（建築士事務所名）】",null,null,null,null,null,null,null,{"$f":"入力シート!H25","v":0},null,"建築士事務所",null,null,{"$f":"入力シート!N25","v":0},null,null,"知事登録第",null,null,{"$f":"入力シート!W25","v":0},null,null,null,null,"号",null,null,null,"2級",null,"北海道",null,"建設大臣"]
[null,null,null,null,null,null,null,null,null,{"$f":"入力シート!H26","v":0},null,null,null,null,null,null,null,null,null,null,null,null,null,null,null,null,null,null,null,"木造",null,"青森県",null,"大臣"]
[null,"【郵便番号】",null,null,null,null,null,null,null,"〒",{"$f":"入力シート!I27","v":0},null,null,null,null,null,null,null,null,null,null,null,null,null,null,null,null,null,null,null,null,"宮城県",null,{"$f":"AF15&\"知事\"","v":"岩手県知事"}]
[null,"【住所】",null,null,null,null,null,null,null,{"$f":"入力シート!H28","v":0},null,null,null,null,null,null,null,null,null,null,null,null,null,null,null,null,null,null,null,null,null,"秋田県",null,{"$f":"AF16&\"知事\"","v":"北海道知事"}]
[null,null,null,null,null,null,null,null,null,null,null,null,null,null,null,null,null,null,null,null,null,null,null,null,null,null,null,null,null,null,null,"山形県",null,"青森県知事"]
[null,"【電話番号】",null,null,null,null,null,null,null,{"$f":"入力シート!H29","v":0},null,null,null,null,null,null,null,null,null,null,null,null,null,null,null,null,null,null,null,null,null,"福島県",null,"宮城県知事"]
[null,null,null,null,null,null,null,null,null,null,null,null,null,null,null,null,null,null,null,null,null,null,null,null,null,null,null,null,null,null,null,"茨城県",null,"秋田県知事"]
["【３.建築主等】",null,null,null,null,null,null,null,null,null,null,null,null,null,null,null,null,null,null,null,null,null,null,null,null,null,null,null,null,null,null,"栃木県",null,"山形県知事"]
[null,"【氏名又は名称のﾌﾘｶﾞﾅ】",null,null,null,null,null,null,null,{"$f":"PHONETIC(入力シート!$H$10)","v":""},null,null,null,null,null,null,null,null,null,null,null,null,null,null,null,null,null,null,null,null,null,"群馬県",null,"福島県知事"]
[null,"【氏名又は名称】",null,null,null,null,null,null,null,{"$f":"入力シート!H32","v":0},null,null,null,null,null,null,null,null,null,null,null,null,null,null,null,null,null,null,null,null,null,"埼玉県",null,"茨城県知事"]
[null,null,null,null,null,null,null,null,null,null,null,null,null,null,null,null,null,null,null,null,null,null,null,null,null,null,null,null,null,null,null,"千葉県",null,"栃木県知事"]
[null,"【郵便番号】",null,null,null,null,null,null,null,"〒",{"$f":"入力シート!I33","v":0},null,null,null,null,null,null,null,null,null,null,null,null,null,null,null,null,null,null,null,null,"東京都",null,"群馬県知事"]
[null,"【住所】",null,null,null,null,null,null,null,{"$f":"入力シート!H34","v":0},null,null,null,null,null,null,null,null,null,null,null,null,null,null,null,null,null,null,null,null,null,"神奈川県",null,"埼玉県知事"]
[null,null,null,null,null,null,null,null,null,null,null,null,null,null,null,null,null,null,null,null,null,null,null,null,null,null,null,null,null,null,null,"新潟県",null,"千葉県知事"]
[null,"【電話番号】",null,null,null,null,null,null,null,{"$f":"入力シート!H35","v":0},null,null,null,null,null,null,null,null,null,null,null,null,null,null,null,null,null,null,null,null,null,"富山県",null,"東京都知事"]
[null,"【建築主と申請物件の利用関係】",null,null,null,null,null,null,null,null,null,null,null,null,null,null,null,null,null,null,null,null,null,null,null,null,null,null,null,null,null,"石川県",null,"神奈川県知事"]
[null,null,null,"自己所有物件",null,null,null,null,null,"賃貸物件",null,null,null,"給与住宅",null,null,null,"分譲物件",null,null,null,"その他"]
[]
["【４.設計者等】",null,null,null,null,null,null,null,null,null,null,null,null,null,null,null,null,null,null,null,null,null,null,null,null,null,null,null,null,null,null,"福井県",null,{"$f":"AF29&\"知事\"","v":"新潟県知事"}]
[null,"【資格】",null,null,null,null,null,null,null,{"$f":"入力シート!H39","v":0},null,"建築士",null,{"$f":"入力シート!N23","v":0},null,null,null,"登録第",null,{"$f":"入力シート!V23","v":0},null,null,null,null,null,"号",null,null,null,null,null,"山梨県",null,{"$f":"AF30&\"知事\"","v":"富山県知事"}]
[null,"【氏名のﾌﾘｶﾞﾅ】",null,null,null,null,null,null,null,{"$f":"PHONETIC(入力シート!H40)","v":""},null,null,null,null,null,null,null,null,null,null,null,null,null,null,null,null,null,null,null,null,null,"長野県",null,{"$f":"AF31&\"知事\"","v":"石川県知事"}]
[null,"【氏名】",null,null,null,null,null,null,null,{"$f":"入力シート!H40","v":0},null,null,null,null,null,null,null,null,null,null,null,null,null,null,null,null,null,null,null,null,null,"岐阜県",null,"福井県知事"]
[null,"【名称（建築士事務所名）】",null,null,null,null,null,null,null,{"$f":"入力シート!H25","v":0},null,"建築士事務所",null,null,{"$f":"入力シート!N41","v":0},null,null,"知事登録第",null,null,{"$f":"入力シート!W41","v":0},null,null,null,null,"号",null,null,null,null,null,"静岡県",null,"山梨県知事"]
[null,null,null,null,null,null,null,null,null,{"$f":"入力シート!H42","v":0},null,null,null,null,null,null,null,null,null,null,null,null,null,null,null,null,null,null,null,null,null,"愛知県",null,"長野県知事"]
[null,"【郵便番号】",null,null,null,null,null,null,null,"〒",{"$f":"入力シート!I43","v":0},null,null,null,null,null,null,null,null,null,null,null,null,null,null,null,null,null,null,null,null,"三重県",null,"岐阜県知事"]
[null,"【住所】",null,null,null,null,null,null,null,{"$f":"入力シート!H44","v":0},null,null,null,null,null,null,null,null,null,null,null,null,null,null,null,null,null,null,null,null,null,"滋賀県",null,"静岡県知事"]
[null,null,null,null,null,null,null,null,null,null,null,null,null,null,null,null,null,null,null,null,null,null,null,null,null,null,null,null,null,null,null,"京都府",null,"愛知県知事"]
[null,"【電話番号】",null,null,null,null,null,null,null,{"$f":"入力シート!H45","v":0},null,null,null,null,null,null,null,null,null,null,null,null,null,null,null,null,null,null,null,null,null,"大阪府",null,"三重県知事"]
[null,null,null,null,null,null,null,null,null,null,null,null,null,null,null,null,null,null,null,null,null,null,null,null,null,null,null,null,null,null,null,"兵庫県",null,"滋賀県知事"]
["【５.工事施工者】",null,null,null,null,null,null,null,null,null,null,null,null,null,null,null,null,null,null,null,null,null,null,null,null,null,null,null,null,null,null,"奈良県",null,"京都府知事"]
[null,"【氏名又は名称のﾌﾘｶﾞﾅ】",null,null,null,null,null,null,null,{"$f":"IF(J47=\"\",\"\",PHONETIC(入力シート!H49))","v":""},null,null,null,null,null,null,null,null,null,null,null,null,null,null,null,null,null,null,null,null,null,"和歌山県",null,"大阪府知事"]
[null,"【氏名又は名称】",null,null,null,null,null,null,null,{"$f":"IF(入力シート!H49=\"\",\"\",入力シート!H49)","v":""},null,null,null,null,null,null,null,null,null,null,null,null,null,null,null,null,null,null,null,null,null,"鳥取県",null,"兵庫県知事"]
[null,null,null,null,null,null,null,null,null,null,null,null,null,null,null,null,null,null,null,null,null,null,null,null,null,null,null,null,null,null,null,"島根県",null,"奈良県知事"]
[null,"【営業所名】",null,null,null,null,null,null,null,"建設業の許可（",null,null,null,{"$f":"IF(入力シート!P50=\"\",\"\",入力シート!P50)","v":"岩手県知事"},null,null,null,"）第",null,{"$f":"IF(入力シート!V50=\"\",\"\",入力シート!V50)","v":""},null,null,null,null,null,"号",null,null,null,null,null,"岡山県",null,"和歌山県知事"]
[null,null,null,null,null,null,null,null,null,{"$f":"IF(入力シート!H51=\"\",\"\",入力シート!H51)","v":""},null,null,null,null,null,null,null,null,null,null,null,null,null,null,null,null,null,null,null,null,null,"広島県",null,"鳥取県知事"]
[null,"【郵便番号】",null,null,null,null,null,null,null,"〒",{"$f":"IF(入力シート!I52=\"\",\"\",入力シート!I52)","v":""},null,null,null,null,null,null,null,null,null,null,null,null,null,null,null,null,null,null,null,null,"山口県",null,"島根県知事"]
[null,"【住所】",null,null,null,null,null,null,null,{"$f":"IF(入力シート!H53=\"\",\"\",入力シート!H53)","v":""},null,null,null,null,null,null,null,null,null,null,null,null,null,null,null,null,null,null,null,null,null,"徳島県",null,"岡山県知事"]
[null,null,null,null,null,null,null,null,null,null,null,null,null,null,null,null,null,null,null,null,null,null,null,null,null,null,null,null,null,null,null,"香川県",null,"広島県知事"]
[null,"【電話番号】",null,null,null,null,null,null,null,{"$f":"IF(入力シート!H54=\"\",\"\",入力シート!H54)","v":""},null,null,null,null,null,null,null,null,null,null,null,null,null,null,null,null,null,null,null,null,null,"愛媛県",null,"山口県知事"]
[null,null,null,null,null,null,null,null,null,null,null,null,null,null,null,null,null,null,null,null,null,null,null,null,null,null,null,null,null,null,null,"高知県",null,"徳島県知事"]
["【６.備考】",null,null,null,null,null,null,null,null,null,null,null,null,null,null,null,null,null,null,null,null,null,null,null,null,null,null,null,null,null,null,"福岡県",null,"香川県知事"]
[null,"国庫補助事業への評価書等活用有無",null,null,null,null,null,null,null,null,null,null,null,null,"有り（予定含む）",null,null,null,null,null,null,"無し",null,null,null,null,null,null,null,null,null,"佐賀県",null,"愛媛県知事"]
[null,null,null,null,null,null,null,null,null,null,null,null,null,null,null,null,null,null,null,null,null,null,null,null,null,null,null,null,null,null,null,"長崎県",null,"高知県知事"]
[null,null,null,null,null,null,null,null,null,null,null,null,null,null,null,null,null,null,null,null,null,null,null,null,null,null,null,null,null,null,null,"熊本県",null,{"$f":"AF56&\"知事\"","v":"福岡県知事"}]
[null,null,null,null,null,null,null,null,null,null,null,null,null,null,null,null,null,null,null,null,null,null,null,null,null,null,null,null,null,null,null,"大分県",null,"佐賀県知事"]
["(注意)",null,null,null,null,null,null,null,null,null,null,null,null,null,null,null,null,null,null,null,null,null,null,null,null,null,null,null,null,null,null,"宮崎県",null,"長崎県知事"]
["①　【3.建築主等】「建築主と申請物件の利用関係」における用語の定義は次のとおりです。",null,null,null,null,null,null,null,null,null,null,null,null,null,null,null,null,null,null,null,null,null,null,null,null,null,null,null,null,null,null,"鹿児島県",null,"熊本県知事"]
["　　1　自己所有物件（持ち家）",null,null,null,null,null,null,null,null,null,null,null,null,null,null,null,null,null,null,null,null,null,null,null,null,null,null,null,null,null,null,"沖縄県",null,"大分県知事"]
["　　　申請の対象とする範囲の過半以上を建築主が居住する目的で使用する（予定の）のもの。",null,null,null,null,null,null,null,null,null,null,null,null,null,null,null,null,null,null,null,null,null,null,null,null,null,null,null,null,null,null,null,null,"宮崎県知事"]
["　　2　賃貸物件（賃貸住宅）",null,null,null,null,null,null,null,null,null,null,null,null,null,null,null,null,null,null,null,null,null,null,null,null,null,null,null,null,null,null,null,null,"鹿児島県知事"]
["　　　申請の対象とする範囲の過半以上を建築主又は建築主より委託された会社等が、賃貸借の契約に基づき",null,null,null,null,null,null,null,null,null,null,null,null,null,null,null,null,null,null,null,null,null,null,null,null,null,null,null,null,null,null,null,null,"沖縄県知事"]
["　　　他人に貸し出す（予定の）もの。"]
["　　3　給与住宅（社宅、公務員住宅等）"]
["　　　申請の対象とする範囲の過半以上を建築主（会社又は団体等）が所有又は管理して、その職員を職務の"]
["　　　都合上又は給与の一部として居住させる（予定の）もの。この場合家賃の支払いの有無を問わない。"]
["　　4　分譲物件（分譲住宅）"]
["　　　申請の対象とする範囲の過半以上を販売する（予定の）もの。"]
["　　5　その他"]
["　　　上記以外のもの。"]
["②　申請者等が２以上の時は、別紙に必要な事項を記載してください。"]

{"sheet":"2-別 (申)","index":7,"n_rows":28,"n_cols":29,"rows_kept":28,"cut":false,"hidden":false,"merged":[[9,9,9,25],[0,0,0,26],[3,9,3,25],[4,9,5,25],[7,9,8,25],[6,10,6,25],[12,9,12,25],[13,9,14,25],[16,9,17,25],[18,9,18,25],[15,10,15,25],[21,9,21,25],[22,9,23,25],[25,9,26,25],[27,9,27,25],[24,10,24,25]]}
["（第二面　別紙：申請者）"]
["申請者等の概要"]
["【１.申請者３】"]
[null,"【氏名又は名称のフリガナ】",null,null,null,null,null,null,null,{"$f":"PHONETIC(J5)","v":""}]
[null,"【氏名又は名称】",null,null,null,null,null,null,null,null,null,null,null,null,null,null,null,null,null,null,null,null,null,null,null,null,null,null,"※申請者が３名以上の場合に入力してください。"]
[]
[null,"【郵便番号】",null,null,null,null,null,null,null,"〒"]
[null,"【住所】"]
[]
[null,"【電話番号】"]
[]
["【１.申請者４】"]
[null,"【氏名又は名称のフリガナ】",null,null,null,null,null,null,null,{"$f":"PHONETIC(J14)","v":""}]
[null,"【氏名又は名称】"]
[]
[null,"【郵便番号】",null,null,null,null,null,null,null,"〒"]
[null,"【住所】"]
[]
[null,"【電話番号】"]
[]
["【１.申請者５】"]
[null,"【氏名又は名称のフリガナ】",null,null,null,null,null,null,null,{"$f":"PHONETIC(J23)","v":""}]
[null,"【氏名又は名称】"]
[]
[null,"【郵便番号】",null,null,null,null,null,null,null,"〒"]
[null,"【住所】"]
[]
[null,"【電話番号】"]

{"sheet":"2-別 (主)","index":8,"n_rows":28,"n_cols":29,"rows_kept":28,"cut":false,"hidden":false,"merged":[[0,0,0,26],[13,9,14,25],[16,9,17,25],[18,9,18,25],[3,9,3,25],[4,9,5,25],[7,9,8,25],[9,9,9,25],[12,9,12,25],[6,10,6,25],[15,10,15,25],[21,9,21,25],[22,9,23,25],[25,9,26,25],[27,9,27,25],[24,10,24,25]]}
["（第二面　別紙：建築主）"]
["申請者等の概要"]
["【３.建築主等２】"]
[null,"【氏名又は名称のフリガナ】",null,null,null,null,null,null,null,{"$f":"PHONETIC(J5)","v":""}]
[null,"【氏名又は名称】"]
[null,null,null,null,null,null,null,null,null,null,null,null,null,null,null,null,null,null,null,null,null,null,null,null,null,null,null,null,"※建築主が２名以上の場合に入力してください。"]
[null,"【郵便番号】",null,null,null,null,null,null,null,"〒"]
[null,"【住所】"]
[]
[null,"【電話番号】"]
[]
["【３.建築主等３】"]
[null,"【氏名又は名称のフリガナ】",null,null,null,null,null,null,null,{"$f":"PHONETIC(J14)","v":""}]
[null,"【氏名又は名称】"]
[]
[null,"【郵便番号】",null,null,null,null,null,null,null,"〒"]
[null,"【住所】"]
[]
[null,"【電話番号】"]
[]
["【３.建築主等４】"]
[null,"【氏名又は名称のフリガナ】",null,null,null,null,null,null,null,{"$f":"PHONETIC(J23)","v":""}]
[null,"【氏名又は名称】"]
[]
[null,"【郵便番号】",null,null,null,null,null,null,null,"〒"]
[null,"【住所】"]
[]
[null,"【電話番号】"]

{"sheet":"2-別(設)","index":9,"n_rows":64,"n_cols":34,"rows_kept":64,"cut":false,"hidden":false,"merged":[[6,11,6,13],[8,10,8,25],[17,11,17,13],[19,10,19,25],[28,11,28,13],[16,9,16,25],[17,9,17,10],[17,14,17,16],[25,9,25,10],[25,13,25,16],[15,9,15,25],[18,9,18,25],[20,9,21,25],[17,20,17,24],[0,0,0,26],[3,9,3,10],[3,13,3,16],[3,19,3,24],[22,9,22,25],[4,9,4,25],[5,9,5,25],[6,9,6,10],[6,14,6,16],[6,20,6,24],[7,9,7,25],[9,9,10,25],[11,9,11,25],[14,9,14,10],[14,13,14,16],[14,19,14,24],[30,10,30,25],[31,9,32,25],[33,9,33,25],[25,19,25,24],[26,9,26,25],[28,9,28,10],[28,14,28,16],[28,20,28,24],[29,9,29,25],[27,9,27,25]]}
["（第二面　別紙：設計者等）"]
["申請者等の概要"]
["【４.設計者等２】"]
[null,"【資格】",null,null,null,null,null,null,null,null,null,"建築士",null,null,null,null,null,"登録第",null,null,null,null,null,null,null,"号"]
[null,"【氏名のフリガナ】",null,null,null,null,null,null,null,{"$f":"PHONETIC(J6)","v":""}]
[null,"【氏名】",null,null,null,null,null,null,null,null,null,null,null,null,null,null,null,null,null,null,null,null,null,null,null,null,null,null,"※設計者が２名以上の場合に入力してください。"]
[null,"【名称（建築士事務所名）】",null,null,null,null,null,null,null,null,null,"建築士事務所",null,null,null,null,null,"知事登録第",null,null,null,null,null,null,null,"号"]
[]
[null,"【郵便番号】",null,null,null,null,null,null,null,"〒"]
[null,"【住所】"]
[]
[null,"【電話番号】"]
[null,null,null,null,null,null,null,null,null,null,null,null,null,null,null,null,null,null,null,null,null,null,null,null,null,null,null,null,null,"資格",null,"登録先（知事無し）",null,"登録先"]
["【４.設計者等３】"]
[null,"【資格】",null,null,null,null,null,null,null,null,null,"建築士",null,null,null,null,null,"登録第",null,null,null,null,null,null,null,"号",null,null,null,"1級",null,"岩手県",null,"国土交通大臣"]
[null,"【氏名のフリガナ】",null,null,null,null,null,null,null,{"$f":"PHONETIC(J17)","v":""},null,null,null,null,null,null,null,null,null,null,null,null,null,null,null,null,null,null,null,"2級",null,"北海道",null,"建設大臣"]
[null,"【氏名】",null,null,null,null,null,null,null,null,null,null,null,null,null,null,null,null,null,null,null,null,null,null,null,null,null,null,null,"木造",null,"青森県",null,"大臣"]
[null,"【名称（建築士事務所名）】",null,null,null,null,null,null,null,null,null,"建築士事務所",null,null,null,null,null,"知事登録第",null,null,null,null,null,null,null,"号",null,null,null,null,null,"宮城県",null,{"$f":"AF15&\"知事\"","v":"岩手県知事"}]
[null,null,null,null,null,null,null,null,null,null,null,null,null,null,null,null,null,null,null,null,null,null,null,null,null,null,null,null,null,null,null,"秋田県",null,"北海道知事"]
[null,"【郵便番号】",null,null,null,null,null,null,null,"〒",null,null,null,null,null,null,null,null,null,null,null,null,null,null,null,null,null,null,null,null,null,"山形県",null,"青森県知事"]
[null,"【住所】",null,null,null,null,null,null,null,null,null,null,null,null,null,null,null,null,null,null,null,null,null,null,null,null,null,null,null,null,null,"福島県",null,"宮城県知事"]
[null,null,null,null,null,null,null,null,null,null,null,null,null,null,null,null,null,null,null,null,null,null,null,null,null,null,null,null,null,null,null,"茨城県",null,"秋田県知事"]
[null,"【電話番号】",null,null,null,null,null,null,null,null,null,null,null,null,null,null,null,null,null,null,null,null,null,null,null,null,null,null,null,null,null,"栃木県",null,"山形県知事"]
[null,null,null,null,null,null,null,null,null,null,null,null,null,null,null,null,null,null,null,null,null,null,null,null,null,null,null,null,null,null,null,"群馬県",null,"福島県知事"]
["【４.設計者等４】",null,null,null,null,null,null,null,null,null,null,null,null,null,null,null,null,null,null,null,null,null,null,null,null,null,null,null,null,null,null,"埼玉県",null,"茨城県知事"]
[null,"【資格】",null,null,null,null,null,null,null,null,null,"建築士",null,null,null,null,null,"登録第",null,null,null,null,null,null,null,"号",null,null,null,null,null,"千葉県",null,"栃木県知事"]
[null,"【氏名のフリガナ】",null,null,null,null,null,null,null,{"$f":"PHONETIC(J28)","v":""},null,null,null,null,null,null,null,null,null,null,null,null,null,null,null,null,null,null,null,null,null,"東京都",null,"群馬県知事"]
[null,"【氏名】",null,null,null,null,null,null,null,null,null,null,null,null,null,null,null,null,null,null,null,null,null,null,null,null,null,null,null,null,null,"神奈川県",null,"埼玉県知事"]
[null,"【名称（建築士事務所名）】",null,null,null,null,null,null,null,null,null,"建築士事務所",null,null,null,null,null,"知事登録第",null,null,null,null,null,null,null,"号",null,null,null,null,null,"新潟県",null,"千葉県知事"]
[null,null,null,null,null,null,null,null,null,null,null,null,null,null,null,null,null,null,null,null,null,null,null,null,null,null,null,null,null,null,null,"富山県",null,"東京都知事"]
[null,"【郵便番号】",null,null,null,null,null,null,null,"〒",null,null,null,null,null,null,null,null,null,null,null,null,null,null,null,null,null,null,null,null,null,"石川県",null,"神奈川県知事"]
[null,"【住所】",null,null,null,null,null,null,null,null,null,null,null,null,null,null,null,null,null,null,null,null,null,null,null,null,null,null,null,null,null,"福井県",null,"新潟県知事"]
[null,null,null,null,null,null,null,null,null,null,null,null,null,null,null,null,null,null,null,null,null,null,null,null,null,null,null,null,null,null,null,"山梨県",null,"富山県知事"]
[null,"【電話番号】",null,null,null,null,null,null,null,null,null,null,null,null,null,null,null,null,null,null,null,null,null,null,null,null,null,null,null,null,null,"長野県",null,"石川県知事"]
[null,null,null,null,null,null,null,null,null,null,null,null,null,null,null,null,null,null,null,null,null,null,null,null,null,null,null,null,null,null,null,"岐阜県",null,"福井県知事"]
[null,null,null,null,null,null,null,null,null,null,null,null,null,null,null,null,null,null,null,null,null,null,null,null,null,null,null,null,null,null,null,"静岡県",null,"山梨県知事"]
[null,null,null,null,null,null,null,null,null,null,null,null,null,null,null,null,null,null,null,null,null,null,null,null,null,null,null,null,null,null,null,"愛知県",null,"長野県知事"]
[null,null,null,null,null,null,null,null,null,null,null,null,null,null,null,null,null,null,null,null,null,null,null,null,null,null,null,null,null,null,null,"三重県",null,"岐阜県知事"]
[null,null,null,null,null,null,null,null,null,null,null,null,null,null,null,null,null,null,null,null,null,null,null,null,null,null,null,null,null,null,null,"滋賀県",null,"静岡県知事"]
[null,null,null,null,null,null,null,null,null,null,null,null,null,null,null,null,null,null,null,null,null,null,null,null,null,null,null,null,null,null,null,"京都府",null,"愛知県知事"]
[null,null,null,null,null,null,null,null,null,null,null,null,null,null,null,null,null,null,null,null,null,null,null,null,null,null,null,null,null,null,null,"大阪府",null,"三重県知事"]
[null,null,null,null,null,null,null,null,null,null,null,null,null,null,null,null,null,null,null,null,null,null,null,null,null,null,null,null,null,null,null,"兵庫県",null,"滋賀県知事"]
[null,null,null,null,null,null,null,null,null,null,null,null,null,null,null,null,null,null,null,null,null,null,null,null,null,null,null,null,null,null,null,"奈良県",null,"京都府知事"]
[null,null,null,null,null,null,null,null,null,null,null,null,null,null,null,null,null,null,null,null,null,null,null,null,null,null,null,null,null,null,null,"和歌山県",null,"大阪府知事"]
[null,null,null,null,null,null,null,null,null,null,null,null,null,null,null,null,null,null,null,null,null,null,null,null,null,null,null,null,null,null,null,"鳥取県",null,"兵庫県知事"]
[null,null,null,null,null,null,null,null,null,null,null,null,null,null,null,null,null,null,null,null,null,null,null,null,null,null,null,null,null,null,null,"島根県",null,"奈良県知事"]
[null,null,null,null,null,null,null,null,null,null,null,null,null,null,null,null,null,null,null,null,null,null,null,null,null,null,null,null,null,null,null,"岡山県",null,"和歌山県知事"]
[null,null,null,null,null,null,null,null,null,null,null,null,null,null,null,null,null,null,null,null,null,null,null,null,null,null,null,null,null,null,null,"広島県",null,"鳥取県知事"]
[null,null,null,null,null,null,null,null,null,null,null,null,null,null,null,null,null,null,null,null,null,null,null,null,null,null,null,null,null,null,null,"山口県",null,"島根県知事"]
[null,null,null,null,null,null,null,null,null,null,null,null,null,null,null,null,null,null,null,null,null,null,null,null,null,null,null,null,null,null,null,"徳島県",null,"岡山県知事"]
[null,null,null,null,null,null,null,null,null,null,null,null,null,null,null,null,null,null,null,null,null,null,null,null,null,null,null,null,null,null,null,"香川県",null,"広島県知事"]
[null,null,null,null,null,null,null,null,null,null,null,null,null,null,null,null,null,null,null,null,null,null,null,null,null,null,null,null,null,null,null,"愛媛県",null,"山口県知事"]
[null,null,null,null,null,null,null,null,null,null,null,null,null,null,null,null,null,null,null,null,null,null,null,null,null,null,null,null,null,null,null,"高知県",null,"徳島県知事"]
[null,null,null,null,null,null,null,null,null,null,null,null,null,null,null,null,null,null,null,null,null,null,null,null,null,null,null,null,null,null,null,"福岡県",null,"香川県知事"]
[null,null,null,null,null,null,null,null,null,null,null,null,null,null,null,null,null,null,null,null,null,null,null,null,null,null,null,null,null,null,null,"佐賀県",null,"愛媛県知事"]
[null,null,null,null,null,null,null,null,null,null,null,null,null,null,null,null,null,null,null,null,null,null,null,null,null,null,null,null,null,null,null,"長崎県",null,"高知県知事"]
[null,null,null,null,null,null,null,null,null,null,null,null,null,null,null,null,null,null,null,null,null,null,null,null,null,null,null,null,null,null,null,"熊本県",null,"福岡県知事"]
[null,null,null,null,null,null,null,null,null,null,null,null,null,null,null,null,null,null,null,null,null,null,null,null,null,null,null,null,null,null,null,"大分県",null,"佐賀県知事"]
[null,null,null,null,null,null,null,null,null,null,null,null,null,null,null,null,null,null,null,null,null,null,null,null,null,null,null,null,null,null,null,"宮崎県",null,"長崎県知事"]
[null,null,null,null,null,null,null,null,null,null,null,null,null,null,null,null,null,null,null,null,null,null,null,null,null,null,null,null,null,null,null,"鹿児島県",null,"熊本県知事"]
[null,null,null,null,null,null,null,null,null,null,null,null,null,null,null,null,null,null,null,null,null,null,null,null,null,null,null,null,null,null,null,"沖縄県",null,"大分県知事"]
[null,null,null,null,null,null,null,null,null,null,null,null,null,null,null,null,null,null,null,null,null,null,null,null,null,null,null,null,null,null,null,null,null,"宮崎県知事"]
[null,null,null,null,null,null,null,null,null,null,null,null,null,null,null,null,null,null,null,null,null,null,null,null,null,null,null,null,null,null,null,null,null,"鹿児島県知事"]
[null,null,null,null,null,null,null,null,null,null,null,null,null,null,null,null,null,null,null,null,null,null,null,null,null,null,null,null,null,null,null,null,null,"沖縄県知事"]

{"sheet":"2-別 (施)","index":10,"n_rows":64,"n_cols":34,"rows_kept":64,"cut":false,"hidden":false,"merged":[[0,0,0,26],[3,9,3,25],[4,9,5,25],[6,13,6,16],[6,19,6,24],[6,17,6,18],[15,9,16,25],[22,9,22,25],[25,9,25,25],[26,9,27,25],[18,9,18,25],[20,9,21,25],[17,17,17,18],[19,10,19,25],[7,9,7,25],[9,9,10,25],[11,9,11,25],[14,9,14,25],[8,10,8,25],[31,9,32,25],[17,13,17,16],[17,19,17,24],[33,9,33,25],[28,13,28,16],[28,19,28,24],[29,9,29,25],[28,17,28,18],[30,10,30,25]]}
["（第二面　別紙：工事施工者）"]
["申請者等の概要"]
["【５.工事施工者２】"]
[null,"【氏名又は名称のフリガナ】",null,null,null,null,null,null,null,{"$f":"PHONETIC(J5)","v":""}]
[null,"【氏名又は名称】"]
[null,null,null,null,null,null,null,null,null,null,null,null,null,null,null,null,null,null,null,null,null,null,null,null,null,null,null,null,"※工事施工者が２名以上の場合に入力してください。"]
[null,"【営業所名】",null,null,null,null,null,null,null,"建設業の許可（",null,null,null,null,null,null,null,"）第",null,null,null,null,null,null,null,"号"]
[]
[null,"【郵便番号】",null,null,null,null,null,null,null,"〒"]
[null,"【住所】"]
[]
[null,"【電話番号】"]
[null,null,null,null,null,null,null,null,null,null,null,null,null,null,null,null,null,null,null,null,null,null,null,null,null,null,null,null,null,"資格",null,"登録先（知事無し）",null,"登録先"]
["【５.工事施工者３】"]
[null,"【氏名又は名称のフリガナ】",null,null,null,null,null,null,null,{"$f":"PHONETIC(J16)","v":""},null,null,null,null,null,null,null,null,null,null,null,null,null,null,null,null,null,null,null,"1級",null,"岩手県",null,"国土交通大臣"]
[null,"【氏名又は名称】",null,null,null,null,null,null,null,null,null,null,null,null,null,null,null,null,null,null,null,null,null,null,null,null,null,null,null,"2級",null,"北海道",null,"建設大臣"]
[null,null,null,null,null,null,null,null,null,null,null,null,null,null,null,null,null,null,null,null,null,null,null,null,null,null,null,null,null,"木造",null,"青森県",null,"大臣"]
[null,"【営業所名】",null,null,null,null,null,null,null,"建設業の許可（",null,null,null,null,null,null,null,"）第",null,null,null,null,null,null,null,"号",null,null,null,null,null,"宮城県",null,{"$f":"AF15&\"知事\"","v":"岩手県知事"}]
[null,null,null,null,null,null,null,null,null,null,null,null,null,null,null,null,null,null,null,null,null,null,null,null,null,null,null,null,null,null,null,"秋田県",null,"北海道知事"]
[null,"【郵便番号】",null,null,null,null,null,null,null,"〒",null,null,null,null,null,null,null,null,null,null,null,null,null,null,null,null,null,null,null,null,null,"山形県",null,"青森県知事"]
[null,"【住所】",null,null,null,null,null,null,null,null,null,null,null,null,null,null,null,null,null,null,null,null,null,null,null,null,null,null,null,null,null,"福島県",null,"宮城県知事"]
[null,null,null,null,null,null,null,null,null,null,null,null,null,null,null,null,null,null,null,null,null,null,null,null,null,null,null,null,null,null,null,"茨城県",null,"秋田県知事"]
[null,"【電話番号】",null,null,null,null,null,null,null,null,null,null,null,null,null,null,null,null,null,null,null,null,null,null,null,null,null,null,null,null,null,"栃木県",null,"山形県知事"]
[null,null,null,null,null,null,null,null,null,null,null,null,null,null,null,null,null,null,null,null,null,null,null,null,null,null,null,null,null,null,null,"群馬県",null,"福島県知事"]
["【５.工事施工者４】",null,null,null,null,null,null,null,null,null,null,null,null,null,null,null,null,null,null,null,null,null,null,null,null,null,null,null,null,null,null,"埼玉県",null,"茨城県知事"]
[null,"【氏名又は名称のフリガナ】",null,null,null,null,null,null,null,{"$f":"PHONETIC(J27)","v":""},null,null,null,null,null,null,null,null,null,null,null,null,null,null,null,null,null,null,null,null,null,"千葉県",null,"栃木県知事"]
[null,"【氏名又は名称】",null,null,null,null,null,null,null,null,null,null,null,null,null,null,null,null,null,null,null,null,null,null,null,null,null,null,null,null,null,"東京都",null,"群馬県知事"]
[null,null,null,null,null,null,null,null,null,null,null,null,null,null,null,null,null,null,null,null,null,null,null,null,null,null,null,null,null,null,null,"神奈川県",null,"埼玉県知事"]
[null,"【営業所名】",null,null,null,null,null,null,null,"建設業の許可（",null,null,null,null,null,null,null,"）第",null,null,null,null,null,null,null,"号",null,null,null,null,null,"新潟県",null,"千葉県知事"]
[null,null,null,null,null,null,null,null,null,null,null,null,null,null,null,null,null,null,null,null,null,null,null,null,null,null,null,null,null,null,null,"富山県",null,"東京都知事"]
[null,"【郵便番号】",null,null,null,null,null,null,null,"〒",null,null,null,null,null,null,null,null,null,null,null,null,null,null,null,null,null,null,null,null,null,"石川県",null,"神奈川県知事"]
[null,"【住所】",null,null,null,null,null,null,null,null,null,null,null,null,null,null,null,null,null,null,null,null,null,null,null,null,null,null,null,null,null,"福井県",null,"新潟県知事"]
[null,null,null,null,null,null,null,null,null,null,null,null,null,null,null,null,null,null,null,null,null,null,null,null,null,null,null,null,null,null,null,"山梨県",null,"富山県知事"]
[null,"【電話番号】",null,null,null,null,null,null,null,null,null,null,null,null,null,null,null,null,null,null,null,null,null,null,null,null,null,null,null,null,null,"長野県",null,"石川県知事"]
[null,null,null,null,null,null,null,null,null,null,null,null,null,null,null,null,null,null,null,null,null,null,null,null,null,null,null,null,null,null,null,"岐阜県",null,"福井県知事"]
[null,null,null,null,null,null,null,null,null,null,null,null,null,null,null,null,null,null,null,null,null,null,null,null,null,null,null,null,null,null,null,"静岡県",null,"山梨県知事"]
[null,null,null,null,null,null,null,null,null,null,null,null,null,null,null,null,null,null,null,null,null,null,null,null,null,null,null,null,null,null,null,"愛知県",null,"長野県知事"]
[null,null,null,null,null,null,null,null,null,null,null,null,null,null,null,null,null,null,null,null,null,null,null,null,null,null,null,null,null,null,null,"三重県",null,"岐阜県知事"]
[null,null,null,null,null,null,null,null,null,null,null,null,null,null,null,null,null,null,null,null,null,null,null,null,null,null,null,null,null,null,null,"滋賀県",null,"静岡県知事"]
[null,null,null,null,null,null,null,null,null,null,null,null,null,null,null,null,null,null,null,null,null,null,null,null,null,null,null,null,null,null,null,"京都府",null,"愛知県知事"]
[null,null,null,null,null,null,null,null,null,null,null,null,null,null,null,null,null,null,null,null,null,null,null,null,null,null,null,null,null,null,null,"大阪府",null,"三重県知事"]
[null,null,null,null,null,null,null,null,null,null,null,null,null,null,null,null,null,null,null,null,null,null,null,null,null,null,null,null,null,null,null,"兵庫県",null,"滋賀県知事"]
[null,null,null,null,null,null,null,null,null,null,null,null,null,null,null,null,null,null,null,null,null,null,null,null,null,null,null,null,null,null,null,"奈良県",null,"京都府知事"]
[null,null,null,null,null,null,null,null,null,null,null,null,null,null,null,null,null,null,null,null,null,null,null,null,null,null,null,null,null,null,null,"和歌山県",null,"大阪府知事"]
[null,null,null,null,null,null,null,null,null,null,null,null,null,null,null,null,null,null,null,null,null,null,null,null,null,null,null,null,null,null,null,"鳥取県",null,"兵庫県知事"]
[null,null,null,null,null,null,null,null,null,null,null,null,null,null,null,null,null,null,null,null,null,null,null,null,null,null,null,null,null,null,null,"島根県",null,"奈良県知事"]
[null,null,null,null,null,null,null,null,null,null,null,null,null,null,null,null,null,null,null,null,null,null,null,null,null,null,null,null,null,null,null,"岡山県",null,"和歌山県知事"]
[null,null,null,null,null,null,null,null,null,null,null,null,null,null,null,null,null,null,null,null,null,null,null,null,null,null,null,null,null,null,null,"広島県",null,"鳥取県知事"]
[null,null,null,null,null,null,null,null,null,null,null,null,null,null,null,null,null,null,null,null,null,null,null,null,null,null,null,null,null,null,null,"山口県",null,"島根県知事"]
[null,null,null,null,null,null,null,null,null,null,null,null,null,null,null,null,null,null,null,null,null,null,null,null,null,null,null,null,null,null,null,"徳島県",null,"岡山県知事"]
[null,null,null,null,null,null,null,null,null,null,null,null,null,null,null,null,null,null,null,null,null,null,null,null,null,null,null,null,null,null,null,"香川県",null,"広島県知事"]
[null,null,null,null,null,null,null,null,null,null,null,null,null,null,null,null,null,null,null,null,null,null,null,null,null,null,null,null,null,null,null,"愛媛県",null,"山口県知事"]
[null,null,null,null,null,null,null,null,null,null,null,null,null,null,null,null,null,null,null,null,null,null,null,null,null,null,null,null,null,null,null,"高知県",null,"徳島県知事"]
[null,null,null,null,null,null,null,null,null,null,null,null,null,null,null,null,null,null,null,null,null,null,null,null,null,null,null,null,null,null,null,"福岡県",null,"香川県知事"]
[null,null,null,null,null,null,null,null,null,null,null,null,null,null,null,null,null,null,null,null,null,null,null,null,null,null,null,null,null,null,null,"佐賀県",null,"愛媛県知事"]
[null,null,null,null,null,null,null,null,null,null,null,null,null,null,null,null,null,null,null,null,null,null,null,null,null,null,null,null,null,null,null,"長崎県",null,"高知県知事"]
[null,null,null,null,null,null,null,null,null,null,null,null,null,null,null,null,null,null,null,null,null,null,null,null,null,null,null,null,null,null,null,"熊本県",null,"福岡県知事"]
[null,null,null,null,null,null,null,null,null,null,null,null,null,null,null,null,null,null,null,null,null,null,null,null,null,null,null,null,null,null,null,"大分県",null,"佐賀県知事"]
[null,null,null,null,null,null,null,null,null,null,null,null,null,null,null,null,null,null,null,null,null,null,null,null,null,null,null,null,null,null,null,"宮崎県",null,"長崎県知事"]
[null,null,null,null,null,null,null,null,null,null,null,null,null,null,null,null,null,null,null,null,null,null,null,null,null,null,null,null,null,null,null,"鹿児島県",null,"熊本県知事"]
[null,null,null,null,null,null,null,null,null,null,null,null,null,null,null,null,null,null,null,null,null,null,null,null,null,null,null,null,null,null,null,"沖縄県",null,"大分県知事"]
[null,null,null,null,null,null,null,null,null,null,null,null,null,null,null,null,null,null,null,null,null,null,null,null,null,null,null,null,null,null,null,null,null,"宮崎県知事"]
[null,null,null,null,null,null,null,null,null,null,null,null,null,null,null,null,null,null,null,null,null,null,null,null,null,null,null,null,null,null,null,null,null,"鹿児島県知事"]
[null,null,null,null,null,null,null,null,null,null,null,null,null,null,null,null,null,null,null,null,null,null,null,null,null,null,null,null,null,null,null,null,null,"沖縄県知事"]

{"sheet":"3面","index":11,"n_rows":26,"n_cols":35,"rows_kept":26,"cut":false,"hidden":false,"merged":[[9,9,9,11],[18,0,19,26],[0,0,0,26],[6,9,6,25],[8,9,8,14],[8,18,8,23],[7,21,7,25],[10,18,10,19],[10,21,10,22],[10,24,10,25],[4,10,4,12],[2,7,3,25]]}
["（第三面）"]
["建築物に関する概要"]
["【１.建築物の所在地】",null,null,null,null,null,null,{"$f":"入力シート!H6","v":0}]
[]
["【２.該当する地域の区分】",null,null,null,null,null,null,null,null,"（",{"$f":"計算シート!D10","v":"4地域"},null,null,"）",null,null,null,null,null,null,null,null,null,null,null,null,null,"←計算シートより"]
["【３.建築物の用途】",null,null,null,null,null,null,null,null,null,"一戸建ての住宅"]
["【４.建築物の名称】",null,null,null,null,null,null,null,null,{"$f":"入力シート!H4","v":0}]
["【５.建築物の階数】",null,null,null,null,null,null,null,null,"（地上）",null,null,2,"階",null,"（地下）",null,null,0,"階"]
["【６.建築物の構造】",null,null,null,null,null,null,null,null,"木造(在来軸組工法)",null,null,null,null,null,"造　一部",null,null,null,null,null,null,null,null,"造"]
["【７.建築物の延べ面積】",null,null,null,null,null,null,null,null,null,null,null,"㎡"]
["【８.建築物の新築の竣工時期（計画中の場合は予定工期）】",null,null,null,null,null,null,null,null,null,null,null,null,null,null,null,null,null,null,null,"年",null,null,"月",null,null,"日"]
["【９.申請の対象とする範囲】",null,null,null,null,null,null,null,null,null,"一戸建ての住宅",null,null,null,null,null,null,null,"(⇒申請書第四面作成）"]
["【10.備考】",null,null,null,null,null,null,null,null,"プレート等交付希望",null,null,null,null,null,null,null,"有",null,"無"]
[null,null,null,null,null,null,null,null,null,null,null,null,null,null,null,null,"※有の場合は、別紙の「BELS評価連絡票」に、"]
[null,null,null,null,null,null,null,null,null,null,null,null,null,null,null,null,"　希望する種類と数量を記入してください。"]
[null,null,null,null,null,null,null,null,null,null,null,null,null,null,null,null,null,null,null,null,null,null,null,null,null,null,null,null,null,null,null,null,"階数",null,"構造"]
[]
["(注意)",null,null,null,null,null,null,null,null,null,null,null,null,null,null,null,null,null,null,null,null,null,null,null,null,null,null,null,null,null,null,null,0,null,"木造(在来軸組工法)"]
["①この様式で用いる用語は、別に定める場合を除き、建築物エネルギー消費性能基準等を定める省令（平成28年\n　経済産業省令・国土交通省令第1号）で定める用語の定義に準じます。（各面共通）",null,null,null,null,null,null,null,null,null,null,null,null,null,null,null,null,null,null,null,null,null,null,null,null,null,null,null,null,null,null,null,1,null,"木造(枠組壁工法)"]
[null,null,null,null,null,null,null,null,null,null,null,null,null,null,null,null,null,null,null,null,null,null,null,null,null,null,null,null,null,null,null,null,2,null,"鉄骨造"]
["②この様式で用いる用語の定義は、次のとおりです。",null,null,null,null,null,null,null,null,null,null,null,null,null,null,null,null,null,null,null,null,null,null,null,null,null,null,null,null,null,null,null,3]
["　 (1)一戸建ての住宅：住宅の用途以外の用途に供する部分を有しない一戸建ての住宅"]
["③【４．建築物の名称】　建築物の部分で申請する場合を除き、評価書に表示される名称となります。"]
["④【８.建築物の新築の竣工時期（計画中の場合は予定工期）】暦は西暦とし年月日を記載してください。"]
["　なお、日付は上旬、中旬、下旬とすることも可能です。"]
["⑤【10．備考】必要に応じて、プレート等の交付についての依頼の有無を記載できます。"]

{"sheet":"4面","index":12,"n_rows":45,"n_cols":26,"rows_kept":45,"cut":false,"hidden":false,"merged":[[44,0,46,26],[40,0,41,26],[42,0,43,26],[0,0,0,26],[6,4,6,6],[10,15,10,24],[34,1,35,25],[38,0,39,26]]}
["（第四面）"]
["申請対象に関する事項（建築物）"]
["【１.申請対象となる建築物の用途】"]
[null,"（建築基準法施行規則（昭和25年建設省令第40号）別紙の表の用途の区分）"]
[null,null,null,null,"一戸建ての住宅"]
["【２.申請対象部分の計算対象面積】"]
[null,null,null,null,null,null,null,"㎡"]
["【３.評価方法（一次エネルギー消費量の計算に用いた方法）】"]
[null,null,null,null,null,"性能基準"]
[null,null,null,null,null,"仕様基準"]
[null,null,null,null,null,"国土交通大臣が認める方法",null,null,null,null,null,null,null,null,"（",null,null,null,null,null,null,null,null,null,null,")"]
[]
["【４.外皮性能に関する表示】"]
[null,null,null,null,null,"適合",null,"・",null,"－","（対象外）"]
[null,null,null,null,"（仕様基準の場合は、「適合」のみ、以下の□チェックは不要）"]
[null,null,null,null,"・ＵＡの値の記載",null,null,null,null,null,"（","※",null,"希望する",null,null,null,"※",null,"希望しない",null,null,null,"）"]
[null,null,null,null,"・ηＡＣの値の記載",null,null,null,null,null,"（",null,null,"希望する",null,null,null,null,null,"希望しない",null,null,null,"）"]
[null,null,null,null,null,null,"※記載を希望する場合は、評価書にＵＡ･ηＡＣいずれかを記載します。"]
[null,null,null,null,null,null,"また、基準値がない場合（岩手県はηＡＣ値の基準値なし）には記載ができません。"]
["【５.｢ＺＥＨマーク｣、｢ゼロエネ相当｣等に関する表示】"]
[null,null,"申請書選択肢は評価書の表示項目。カッコ書きは表示マーク。"]
[null,null,null,null,null,"『ＺＥＨ』（ZEHマーク+「ゼロエネ相当」）"]
[null,null,null,null,null,"Ｎｅａｒｌｙ ＺＥＨ（ZEHマーク） "]
[null,null,null,null,null,"ＺＥＨ　Ｏｒｉｅｎｔｅｄ（ZEHマーク）"]
[null,null,null,null,null,"ゼロエネ相当"]
[null,null,null,null,null,"記載しない"]
[]
["【６.参考情報】"]
[null,"二次エネルギー消費量に関する項目以外の情報",null,null,null,null,null,null,null,null,null,null,null,null,null,null,null,"別紙による",null,null,null,null,"記載しない"]
[]
["【７.一戸建ての住宅でＺＥＨ　Ｏｒｉｅｎｔｅｄの場合に申告する事項】"]
[null,null,null,"ＺＥＨ　Ｏｒｉｅｎｔｅｄの要件（注意④）に適合する"]
[]
["【８.備考】"]
[]
[]
[]
["(注意)"]
["①【４．外皮性能に関する表示】外皮基準適合の場合のみ「ＵＡまたはηＡＣの値の記載」について「希望する」を選択できます。この場合は、評価書に数値が記載されます。また、「希望しない」を選択した場合は「適合」又は「-」が記載されます。"]
[]
["②【５．｢ＺＥＨマーク｣、｢ゼロエネ相当｣等に関する表示】いずれかの表示を選択した場合、8地域を除き【４．外皮性能に関する表示】におけるＵＡの値の記載（適合が前提）は必須です。"]
[]
["③【６．参考情報】評価書の参考情報に記載を希望するその他省エネルギー性能関連情報や災害対策関連情報及び建築物の販売又は賃貸に関して参考となる情報について記載を希望する場合は、「別紙による」をチェックの上、記載する情報を記載した別紙を提出してください。"]
[]
["④【７．一戸建ての住宅でＺＥＨ　Ｏｒｉｅｎｔｅｄの場合に申告する事項】「北側斜線の対象となる用途地域（第一種及び第二種低層住居専用地域並びに第一種及び第二種中高層住居専用地域）」又は「高度地区において高度斜線が設定されている地域」等であって、敷地面積が85㎡未満でかつ平屋建て以外の住宅で、外皮基準及び一次エネルギー消費量水準に適合する場合に申告してください。"]

{"sheet":"4-別（情報）","index":13,"n_rows":9,"n_cols":3,"rows_kept":9,"cut":false,"hidden":false,"merged":[[0,0,0,26],[3,2,3,25],[10,1,50,25],[1,0,1,26]]}
["（第四面 別紙：参考情報）"]
[]
[null,"建築物の名称"]
[null,null,{"$f":"入力シート!$H$4","v":0}]
[]
[null,"・その他省エネルギー性能に関する情報"]
[null,"・災害対策措置に関する情報"]
[null,"・建築物の販売又は賃貸を行う上で参考となる情報"]
[null,"　これらのことに関する情報を記載してください。"]

{"sheet":"設内1面","index":14,"n_rows":58,"n_cols":29,"rows_kept":58,"cut":false,"hidden":false,"merged":[[8,0,9,1],[8,4,8,27],[8,28,9,29],[9,4,9,5],[8,2,9,3],[9,6,9,25],[9,26,9,27],[1,0,1,29],[4,0,4,6],[4,7,4,29],[5,0,5,6],[5,7,5,29],[10,26,33,27],[12,6,25,6],[10,4,25,5],[10,28,33,29],[36,19,36,23],[36,24,36,28],[36,14,36,18],[36,9,36,13],[36,1,36,8],[10,2,25,3],[10,0,33,1],[26,2,33,3],[37,19,37,23],[43,1,43,8],[37,24,37,28],[37,9,37,13],[37,14,37,18],[37,1,37,8],[38,1,38,8],[44,9,44,28],[44,1,44,8],[40,1,40,8],[41,1,41,8],[42,1,42,8]]}
["（別記参考様式第2号）"]
["（第一面）"]
[]
["設計内容（現況）説明書"]
["建築物の名称",null,null,null,null,null,null,{"$f":"IF('3面'!J7=\"\",\"\",'3面'!J7)","v":0}]
["設計者等氏名",null,null,null,null,null,null,{"$f":"IF('2面'!J37=\"\",\"\",'2面'!J37)","v":0}]
[]
["【基本事項】"]
["確認\n事項",null,"確認\n項目",null,"設　計　内　容（現　況）　説　明　欄",null,null,null,null,null,null,null,null,null,null,null,null,null,null,null,null,null,null,null,null,null,null,null,"設計\n内容\n確認欄"]
[null,null,null,null,"項目",null,"設計内容（現況）",null,null,null,null,null,null,null,null,null,null,null,null,null,null,null,null,null,null,null,"記載\n図書"]
["建物の概要",null,"建築物に関する事項",null,"用　途",null,null,"・建築物の用途"]
[null,null,null,null,null,null,null,null,"非住宅建築物",null,null,null,null,null,null,"住宅",null,null,null,"複合建築物"]
[null,null,null,null,null,null,"申請の対象となる用途（該当する全て）","・住宅　または複合建築物の住宅部分"]
[null,null,null,null,null,null,null,null,"共同住宅等、複合建築物の住戸",null,null,null,null,null,null,null,null,null,null,"一戸建ての住宅"]
[null,null,null,null,null,null,null,"・非住宅　または複合建築物の非住宅部分"]
[null,null,null,null,null,null,null,"　　カッコ内はモデル建物法による用途"]
[null,null,null,null,null,null,null,null,"事務所等",null,null,"（",null,"事務所モデル）"]
[null,null,null,null,null,null,null,null,"ホテル等",null,null,"（",null,"ビジネスホテルモデル",null,null,null,null,null,null,"シティホテルモデル）"]
[null,null,null,null,null,null,null,null,"病院等",null,null,"（",null,"総合病院モデル",null,null,null,null,null,null,"福祉施設モデル"]
[null,null,null,null,null,null,null,null,null,null,null,null,null,"クリニックモデル　）"]
[null,null,null,null,null,null,null,null,"百貨店等",null,null,"（",null,"大規模物販モデル",null,null,null,null,null,null,"小規模物販モデル）"]
[null,null,null,null,null,null,null,null,"学校等",null,null,"（",null,"学校モデル",null,null,null,null,null,null,"幼稚園モデル"]
[null,null,null,null,null,null,null,null,null,null,null,null,null,"大学モデル",null,null,null,null,null,null,"講堂モデル　）"]
[null,null,null,null,null,null,null,null,"飲食店等",null,null,"（",null,"飲食店モデル　）"]
[null,null,null,null,null,null,null,null,"集会所等",null,null,"（",null,"集会所モデル　）"]
[null,null,null,null,null,null,null,null,"工場等",null,null,"（",null,"工場モデル　）"]
[null,null,"申請の範囲",null,null,null,"・申請する評価の範囲（該当する全て）"]
[null,null,null,null,null,null,null,"一戸建ての住宅"]
[null,null,null,null,null,null,null,"共同住宅等、複合建築物の住戸"]
[null,null,null,null,null,null,null,"非住宅建築物全体・複合建築物の非住宅部分全体"]
[null,null,null,null,null,null,null,"フロア・テナントによる"]
[null,null,null,null,null,null,null,"共同住宅等の住棟、複合建築物の住宅部分全体"]
[null,null,null,null,null,null,null,"複合建築物全体"]
[null,null,null,null,null,null,null,"その他の部分"]
[]
[null,"【参考】申請の対象となる範囲と設計内容説明書の関係"]
[null,"申請の対象となる範囲",null,null,null,null,null,null,null,"住宅用",null,null,null,null,"非住宅用",null,null,null,null,"共用部分用",null,null,null,null,"住棟用"]
[null,"（以下代表的な分類）",null,null,null,null,null,null,null,"【第二面】",null,null,null,null,"【第三面】",null,null,null,null,"【第四面】",null,null,null,null,"【第五面】"]
[null,"一戸建ての住宅",null,null,null,null,null,null,null,null,null,"○",null,null,null,null,"―",null,null,null,null,"―",null,null,null,null,"―"]
[null,"共同住宅等,複合建築物の住戸",null,null,null,null,null,null,null,null,null,"○※1",null,null,null,null,"―",null,null,null,null,"―",null,null,null,null,"―"]
[null,"非住宅建築物全体等",null,null,null,null,null,null,null,null,null,"―",null,null,null,null,"○",null,null,null,null,"―",null,null,null,null,"―"]
[null,"フロア・テナント・建物用途",null,null,null,null,null,null,null,null,null,"―",null,null,null,null,"○※2",null,null,null,null,"―",null,null,null,null,"―"]
[null,"共同住宅等の住棟等",null,null,null,null,null,null,null,null,null,"○※1",null,null,null,null,"―",null,null,null,null,"○",null,null,null,null,"○"]
[null,"複合建築物全体",null,null,null,null,null,null,null,null,null,"○※1",null,null,null,null,"○",null,null,null,null,"○",null,null,null,null,"○※3"]
[null,"その他の部分",null,null,null,null,null,null,null,"適宜選択"]
[null,null,"※1･･･住戸ごとに作成する。ただし別の表を用いることも可能。"]
[null,null,"※2･･･申請単位ごとに作成。ただし別の表を用いることも可能。"]
[null,null,"※3･･･住宅仕様基準を含む場合は作成不要。"]
[]
["ＢＥＬＳに関して記載する数値は以下のとおりとします。"]
["・ＵＡ　小数第二位未満を切り上げた数値を記載してください。"]
["・ηＡＣ　小数第一位未満を切り上げた数値を記載してください。"]
["・年間熱負荷係数　小数第一位以下を切り上げた数値を記載してください。"]
["・ＢＰＩ　小数第二位未満を切り上げた数値を記載してください。"]
["・ＢＥＩ　小数第二位未満を切り上げた数値を記載してください。"]
["・設計・基準一次エネルギー消費量　小数以下一位未満を切り上げた数値を記載してください。"]
["・削減率　1未満の端数があるときは、これを切り捨てた数値を記載してください。"]
["　（一次エネルギー消費削減量とは「基準一次エネルギー消費量　－　設計一次エネルギー消費量」をいいます。）"]

{"sheet":"設内2面","index":15,"n_rows":60,"n_cols":57,"rows_kept":60,"cut":false,"hidden":false,"merged":[[31,9,31,22],[33,9,33,22],[38,9,38,22],[0,0,0,31],[3,0,3,2],[3,13,3,31],[5,0,6,1],[5,2,6,3],[5,4,5,29],[5,30,5,31],[6,4,6,6],[6,7,6,26],[6,27,6,29],[6,30,6,31],[7,0,17,1],[8,10,8,12],[8,20,8,22],[11,10,11,12],[7,2,12,3],[13,2,17,3],[15,15,15,21],[19,0,20,1],[19,2,20,3],[19,4,19,29],[19,30,19,31],[20,4,20,6],[20,7,20,26],[20,27,20,29],[20,30,20,31],[21,0,22,1],[21,4,22,6],[21,13,21,16],[23,0,29,1],[23,4,23,6],[25,10,25,13],[27,10,27,13],[28,13,28,16],[21,2,22,3],[23,2,29,3],[32,4,32,6],[34,4,34,6],[37,4,37,6],[39,4,39,6],[30,2,44,3],[40,9,40,22],[45,0,59,1],[45,4,45,6],[45,11,45,14],[57,2,59,3],[46,4,49,6],[53,4,56,6],[45,2,56,3],[52,9,52,12],[41,4,41,6],[42,4,42,6],[43,4,43,6],[44,4,44,6],[59,9,59,12],[30,0,44,1],[30,4,30,6],[45,28,45,29],[47,9,47,12],[49,9,49,12],[54,9,54,12],[56,9,56,12]]}
["（第二面）　【住宅用】"]
["住宅または、複合建築物の住宅部分",null,null,null,null,null,null,null,null,null,null,null,null,null,null,null,null,null,null,null,null,null,null,null,null,null,null,null,null,null,null,null,null,null,null,null,null,null,null,null,null,null,null,null,null,null,null,null,null,null,null,null,null,null,"__2地域","__3地域","__4地域"]
[null,"（",null,"一戸建て住宅・",null,null,null,null,null,null,"共同住宅等、複合建築物の住戸",null,null,null,null,null,null,null,null,null,null,"（",null,"別表に記載）　）",null,null,null,null,null,null,null,null,null,null,null,null,null,null,null,null,null,null,null,null,null,null,null,null,null,null,null,null,null,null,"(い)0.07未満","(い)0.07未満","(い)0.08未満"]
["住戸番号",null,null,"※共同住宅等の場合以外は記入不要",null,null,null,null,null,null,null,null,null,null,null,null,null,null,null,null,null,null,null,null,null,null,null,null,null,null,null,null,null,null,null,null,null,null,null,null,null,null,null,null,null,null,null,null,null,null,null,null,null,null,"(ろ)0.07以上0.09未満","(ろ)0.07以上0.09未満","(ろ)0.08以上0.11未満"]
["【外皮に関する事項】",null,null,null,null,null,null,null,null,null,null,null,null,null,null,null,null,null,null,null,null,null,null,null,null,null,null,null,null,null,null,null,null,null,null,null,null,null,null,null,null,null,null,null,null,null,null,null,null,null,null,null,null,null,"(は)0.09以上0.11未満","(は)0.09以上0.11未満","(は)0.11以上0.13未満"]
["確認\n事項",null,"確認\n項目",null,"設　計　内　容（現　況）　説　明　欄",null,null,null,null,null,null,null,null,null,null,null,null,null,null,null,null,null,null,null,null,null,null,null,null,null,"設計内容",null,null,null,null,null,null,null,null,null,null,null,null,null,null,null,null,null,null,null,null,null,null,null,"(に)0.11以上,計算しない","(に)0.11以上,計算しない","(に)0.13以上,計算しない"]
[null,null,null,null,"項　　目",null,null,"設計内容（現況）",null,null,null,null,null,null,null,null,null,null,null,null,null,null,null,null,null,null,null,"記載図書欄",null,null,"確認欄"]
["躯体の外皮性能等",null,"性能基準等",null,"外皮平均",null,null,"外皮平均熱貫流率（ＵＡ）",null,null,null,null,null,null,null,null,null,null,null,null,null,null,null,null,null,null,null,null,"計算書",null,"□","適"]
[null,null,null,null,"熱貫流率",null,null,"設計値（",null,null,{"$f":"IF(計算シート!D14=\"\",\"\",計算シート!D14)","v":""},null,null,"）【W/㎡K】　基準値（",null,null,null,null,null,null,{"$f":"IF(計算シート!E14=\"\",\"\",計算シート!E14)","v":""},null,null,"）【W/㎡K】",null,null,null,null,"仕様書",null,null,null,null,null,null,null,null,null,null,null,null,null,null,null,null,null,null,null,null,null,null,null,null,null,{"$f":"'3面'!K5","v":"4地域"},{"$f":"CONCATENATE(\"__\",BC9)","v":"__4地域"}]
[null,null,null,null,null,null,null,null,null,null,null,null,null,null,null,null,null,null,null,null,null,null,null,null,null,null,null,null,"平面図"]
[null,null,null,null,"外皮平均",null,null,"冷房期の平均日射熱取得率の計算値（ηＡＣ）",null,null,null,null,null,null,null,null,null,null,null,null,null,null,null,null,null,null,null,null,"立面図"]
[null,null,null,null,"日射熱",null,null,"設計値（",null,null,{"$f":"IF(計算シート!D15=\"\",\"\",計算シート!D15)","v":""},null,null,"）",null,null,null,"基準値（",null,null,"基準値なし",null,null,"）",null,null,null,null,"建具表"]
[null,null,null,null,"取得率"]
[null,null,"仕様基準",null,"躯体の断熱",null,null,null,"熱貫流率の基準に適合",null,null,null,null,null,null,null,null,null,null,null,null,null,null,null,null,null,null,null,"仕様表"]
[null,null,null,null,"性能等",null,null,null,"断熱材の熱抵抗値の基準に適合",null,null,null,null,null,null,null,null,null,null,null,null,null,null,null,null,null,null,null,"平面図"]
[null,null,null,null,"開口部",null,null,null,"開口部比率の区分：　（",null,null,null,null,null,null,"(い)0.07未満",null,null,null,null,null,null,"）",null,null,null,null,null,"立面図"]
[null,null,null,null,"の断熱",null,null,null,"緩和措置あり",null,null,null,null,null,null,null,null,null,null,null,null,null,null,null,null,null,null,null,"建具表"]
[null,null,null,null,"性能等",null,null,null,null,"窓の断熱（2％緩和）",null,null,null,null,null,null,null,"窓の日射（4％緩和）"]
["【一次エネルギー消費量に関する事項】"]
["確認\n事項",null,"確認\n項目",null,"設　計　内　容（現　況）　説　明　欄",null,null,null,null,null,null,null,null,null,null,null,null,null,null,null,null,null,null,null,null,null,null,null,null,null,"設計内容"]
[null,null,null,null,"項　　目",null,null,"設計内容（現況）",null,null,null,null,null,null,null,null,null,null,null,null,null,null,null,null,null,null,null,"記載図書欄",null,null,"確認欄"]
["基本\n事項",null,null,null,"計算対象\n床面積",null,null,"計算対象床面積",null,null,null,null,"（",{"$f":"IF('4面'!E7=\"\",\"\",'4面'!E7)","v":""},null,null,null,"）　㎡",null,null,null,null,null,null,null,null,null,null,"平面図",null,"□","適"]
[null,null,null,null,null,null,null,null,null,null,null,null,null,null,null,null,null,null,null,null,null,null,null,null,null,null,null,null,"求積図"]
["一次エネルギー\n消費量",null,null,null,"計算結果等",null,null,null,"計算結果の記入",null,null,null,null,null,null,null,null,null,null,null,null,null,null,null,null,null,null,null,"計算書"]
[null,null,null,null,null,null,null,"・設計一次エネルギー消費量（その他除く）",null,null,null,null,null,null,null,null,null,null,null,null,null,null,null,null,null,null,null,null,"仕様書"]
[null,null,null,null,null,null,null,null,null,"（",{"$f":"IF(計算シート!E33=\"\",\"\",計算シート!E33)","v":""},null,null,null,"）","GJ／年"]
[null,null,null,null,null,null,null,"・基準一次エネルギー消費量（その他除く）"]
[null,null,null,null,null,null,null,null,null,"（",{"$f":"IF(計算シート!G33=\"\",\"\",計算シート!G33)","v":""},null,null,null,"）","GJ／年",null,null,"･･･①"]
[null,null,null,null,null,null,null,null,"・ＢＥＩ",null,null,null,"（",null,null,null,null,"）"]
[null,null,null,null,null,null,null,null,"一次エネルギー消費量に関する仕様基準（住宅部分）"]
["設備の概要",null,"設備機器に係る概要",null,"暖房方式",null,null,null,"エネルギー消費性能計算プログラムの出力票による",null,null,null,null,null,null,null,null,null,null,null,null,null,null,null,null,null,null,null,"仕上表",null,"□","適"]
[null,null,null,null,null,null,null,null,"（",null,null,null,null,null,null,null,null,null,null,null,null,null,null,"）　","※仕様基準",null,null,null,"建具表"]
[null,null,null,null,"冷房方式",null,null,null,"エネルギー消費性能計算プログラムの出力票による",null,null,null,null,null,null,null,null,null,null,null,null,null,null,null,null,null,null,null,"矩計図"]
[null,null,null,null,null,null,null,null,"（",null,null,null,null,null,null,null,null,null,null,null,null,null,null,"）　","※仕様基準",null,null,null,"平面図"]
[null,null,null,null,"換気設備",null,null,null,"エネルギー消費性能計算プログラムの出力票による",null,null,null,null,null,null,null,null,null,null,null,null,null,null,null,null,null,null,null,"機器表"]
[null,null,null,null,"方式",null,null,null,"全般換気設備（比消費電力0.3以下）",null,null,null,null,null,null,null,null,null,null,null,null,null,null,null,"※仕様基準",null,null,null,"系統図"]
[null,null,null,null,null,null,null,null,"比消費電力を有効換気量率で除した値が0.3以下",null,null,null,null,null,null,null,null,null,null,null,null,null,null,null,"※仕様基準"]
[null,null,null,null,"給湯設備",null,null,null,"エネルギー消費性能計算プログラムの出力票による"]
[null,null,null,null,null,null,null,null,"（",null,null,null,null,null,null,null,null,null,null,null,null,null,null,"）　","※仕様基準"]
[null,null,null,null,"照明設備",null,null,null,"エネルギー消費性能計算プログラムの出力票による"]
[null,null,null,null,null,null,null,null,"（",null,null,null,null,null,null,null,null,null,null,null,null,null,null,"）　","※仕様基準"]
[null,null,null,null,"太陽光発電の",null,null,null,"エネルギー消費性能計算プログラムの出力票による"]
[null,null,null,null,"使用について"]
[null,null,null,null,"ｺｰｼﾞｪﾈﾚｰｼｮﾝ",null,null,null,"エネルギー消費性能計算プログラムの出力票による"]
[null,null,null,null,"の使用について"]
["「ZEHマーク」、「ゼロエネ相当」、「ZEH-Mマーク」に関する事項",null,"「ZEHマーク」、「ゼロエネ相当」、「ZEH-Mマーク」に関する表示",null,"外皮基準",null,null,"基準値",null,null,"（",{"$f":"IF(計算シート!E14=\"\",\"\",計算シート!E14)","v":""},null,null,null,"）","【W/㎡K】",null,null,null,null,null,null,null,null,null,null,null,"計算書",null,"□","適"]
[null,null,null,null,"再生可能\nｴﾈﾙｷﾞｰ\n除き",null,null,"・再生可能ｴﾈﾙｷﾞｰを除いた設計一次ｴﾈﾙｷﾞｰ消費量（その他除く）",null,null,null,null,null,null,null,null,null,null,null,null,null,null,null,null,null,null,null,null,"計算書",null,"□","適"]
[null,null,null,null,null,null,null,null,"（",{"$f":"IF(計算シート!E37=\"\",\"\",計算シート!E37)","v":0},null,null,null,"）","GJ／年",null,null,"･･･②"]
[null,null,null,null,null,null,null,"・再生可能ｴﾈﾙｷﾞｰを除いた一次ｴﾈﾙｷﾞｰ消費削減量（その他除く）"]
[null,null,null,null,null,null,null,null,"（",{"$f":"IF(計算シート!E38=\"\",\"\",計算シート!E38)","v":0},null,null,null,"）","GJ／年",null,null,"･･･③＝①-②"]
[null,null,null,null,null,null,null,"・再生可能ｴﾈﾙｷﾞｰを除いた設計一次ｴﾈﾙｷﾞｰ消費量（その他除く）"]
[null,null,null,null,null,null,null,"　の基準一次ｴﾈﾙｷﾞｰ消費量（その他除く）からの削減率"]
[null,null,null,null,null,null,null,null,"（",{"$f":"IF(計算シート!E39=\"\",\"\",計算シート!E39)","v":""},null,null,null,"）","％削減",null,null,"･･･③/①×100"]
[null,null,null,null,"再生可能\nｴﾈﾙｷﾞｰ\n加え",null,null,"・再生可能ｴﾈﾙｷﾞｰを加えた設計一次ｴﾈﾙｷﾞｰ消費量（その他除く）"]
[null,null,null,null,null,null,null,null,"（",{"$f":"IF(計算シート!E42=\"\",\"\",計算シート!E42)","v":0},null,null,null,"）","GJ／年",null,null,"･･･④"]
[null,null,null,null,null,null,null,"・再生可能ｴﾈﾙｷﾞｰを加えた一次ｴﾈﾙｷﾞｰ消費削減量（その他除く）"]
[null,null,null,null,null,null,null,null,"（",{"$f":"IF(計算シート!E43=\"\",\"\",計算シート!E43)","v":0},null,null,null,"）","GJ／年",null,null,"･･･⑤＝①-④"]
[null,null,"※選択した場合のみ",null,null,null,null,"・再生可能ｴﾈﾙｷﾞｰを加えた設計一次ｴﾈﾙｷﾞｰ消費量（その他除く）"]
[null,null,null,null,null,null,null,"　の基準一次ｴﾈﾙｷﾞｰ消費量（その他除く）からの削減率"]
[null,null,null,null,null,null,null,null,"（",{"$f":"IF(計算シート!E44=\"\",\"\",計算シート!E44)","v":""},null,null,null,"）","％削減",null,null,"･･･⑤/①×100"]

{"sheet":"計算シート","index":16,"n_rows":65,"n_cols":12,"rows_kept":65,"cut":false,"hidden":false,"merged":[[0,0,0,8],[2,2,2,7],[4,1,7,1],[9,1,9,2],[9,4,9,5],[9,6,9,7],[13,1,13,2],[14,1,14,2],[18,1,25,1],[18,2,18,3],[19,2,19,3],[20,2,20,3],[21,2,21,3],[22,2,22,3],[23,2,23,3],[24,2,24,3],[25,2,25,3],[26,1,29,1],[26,2,26,3],[27,2,27,3],[28,2,28,3],[29,2,29,3],[33,2,33,3],[37,2,37,3],[38,2,38,3],[42,2,42,3],[43,2,43,3],[64,1,64,6],[46,6,46,7],[49,0,49,1],[50,0,50,1],[63,1,63,7],[46,2,46,5]]}
["BELS　住宅の「ZEH」、「ゼロエネ相当」に関する表示についての一次エネルギー計算書"]
[]
[null,"建築物の名称",{"$f":"入力シート!$H$4","v":0}]
[]
[null,"　使用のルール"," ・黄色セルに入力、水色セルを選択してください。"]
[null,null," ・緑色部分は自動的に計算されます。"]
[null,null," ・①～⑤は、設計内容説明書の記載欄に対応しています。"]
[null,null," ・計算結果をもとに判定することで、申請書にチェックする表示事項が確認できます。"]
[]
[null,"地域区分",null,"4地域","表示したい評価項目",null,"　『ZEH』"]
[]
[null,"▼ 外皮基準"]
[null,null,null,"設計値","省エネ基準値",null,"ZEH外皮基準"]
[null," 外皮平均熱貫流率　UA値",null,null,{"$f":"IF(OR(D10=\"\",D14=\"\"),\"\",HLOOKUP(D10,外皮基準,2,FALSE))","v":""},{"$f":"IF(OR(D10=\"\",D14=\"\"),\"\",IF(D14<=E14,\"適\",\"－\"))","v":""},{"$f":"IF(OR(D10=\"\",D14=\"\"),\"\",HLOOKUP(D10,外皮基準,4,FALSE))","v":""},{"$f":"IF(OR(D10=\"\",D14=\"\"),\"\",IF(D14<=G14,\"適\",\"－\"))","v":""}]
[null," 冷房期の平均日射熱取得率　ηAC値",null,null,{"$f":"IF(OR(D10=\"\",D15=\"\"),\"\",HLOOKUP(D10,外皮基準,3,FALSE))","v":""},{"$f":"IF(OR(D10=\"\",D15=\"\"),\"\",IF(D15<=E15,\"適\",\"－\"))","v":""},"（基準なし）","－"]
[]
[null,"▼ 一次エネルギー消費量"]
[null,null,null,null,"設計一次エネルギー [MJ]",null,"基準一次エネルギー [MJ]"]
[null," 一次エネルギー消費量\n （1戸当り）"," 暖房設備"]
[null,null," 冷房設備"]
[null,null," 換気設備"]
[null,null," 給湯設備"]
[null,null," 照明設備"]
[null,null," その他の設備",null,"（入力不要）",null,"（入力不要）"]
[null,null," 発電設備の発電量のうち自家消費分"]
[null,null," ｺｰｼﾞｪﾈﾚｰｼｮﾝ設備の売電量に係る控除量"]
[null," 参考値"," 発電量（コージェネレーション）"]
[null,null," 発電量（太陽光発電）"]
[null,null," 売電量（コージェネレーション）"]
[null,null," 売電量（太陽光発電）",null,"（入力不要）"]
[]
[null," 結果①　省エネ基準（その他除く）",null,null,"設計一次エネルギー [GJ]",null,"基準一次エネルギー [GJ]"]
[null,null,null,null,null,null,null,"①"]
[null,null," エネルギー消費削減量",null,{"$f":"SUM(G33-E33)","v":0}]
[]
[null," 結果②　再生可能エネルギーを除く（その他除く）",null,null,"設計一次エネルギー [GJ]",null,"基準一次エネルギー [GJ]"]
[null,null,null,null,{"$f":"ROUNDUP((E19+E20+E21+E22+E23+E26-(E27-E29))*0.001,1)","v":0},"②",{"$f":"+G33","v":0},"①"]
[null,null," エネルギー消費削減量",null,{"$f":"SUM(G37-E37)","v":0},"③"]
[null,null," 削減率　（A）",null,{"$f":"IF(OR(E33=\"\",G33=\"\"),\"\",TRUNC(E38/G37*100))","v":""},"％","←③/①×100"]
[]
[null," 結果③　再生可能エネルギーを加え（その他除く）",null,null,"設計一次エネルギー [GJ]",null,"基準一次エネルギー [GJ]",null,null,null,"　『ZEH』",{"$f":"IF(AND(E39>=20,E44>=100,H14=\"適\",F15=\"適\"),\"〇\",\"－\")","v":"－"}]
[null,null,null,null,{"$f":"IF((E19+E20+E21+E22+E23-E27-E28)*0.001>=0,ROUNDUP((E19+E20+E21+E22+E23-E27-E28)*0.001,1),ROUNDDOWN((E19+E20+E21+E22+E23-E27-E28)*0.001,1))","v":0},"④",{"$f":"+G33","v":0},"①",null,null,"　NearlyZEH",{"$f":"IF(AND(E39>=20,E44>=100,H14=\"適\"),\"－\",IF(AND(E39>=20,E44>=75,E44<100,H14=\"適\",F15=\"適\"),\"〇\",\"－\"))","v":"－"}]
[null,null," エネルギー消費削減量",null,{"$f":"SUM(G42-E42)","v":0},"⑤",null,null,null,null,"  ZEH oriented",{"$f":"IF(AND(E39>=20,H14=\"適\",F15=\"適\"),\"〇\",\"－\")","v":"－"}]
[null,null," 削減率　（B）",null,{"$f":"IF(OR(E33=\"\",G33=\"\"),\"\",TRUNC(E43/G42*100))","v":""},"％","←⑤/①×100",null,null,null,"　ゼロエネ相当",{"$f":"IF(AND(E39>=20,E44>=100,F14=\"適\",F15=\"適\"),\"〇\",\"－\")","v":"－"}]
[]
[null,"▼ 外皮基準ならびに一次エネルギー消費量における判定"]
[null,{"$f":"IF(OR(D10=\"\",G10=\"\"),\"\",G10)","v":"　『ZEH』"},{"$f":"IF(OR(D10=\"\",G10=\"\"),\"\",VLOOKUP(G10,水準,2,FALSE))","v":" 外皮：省エネ基準 ・ ZEH外皮基準　一次エネ：A≧20　＆　B≧100"},null,null,null,{"$f":"IF(OR(D10=\"\",G10=\"\"),\"\",VLOOKUP(G10,可否,2,FALSE))","v":"－"}]
[]
[]
[]
["　　　■判定"]
[]
[]
[]
[]
[]
[]
[]
[]
[]
[]
[]
[]
[null,"（※1）ＵＡ値 １、２地域：０．４［Ｗ／㎡Ｋ］以下、３地域：０．５［Ｗ／㎡Ｋ］以下、４～７地域：０．６［Ｗ／㎡Ｋ］以下\n（※2）評価書の表示項目　（申請書チェック項目）　　（※3）表示マークの表示項目"]
[null,"※A⇒上の表の結果②の削減率(A)の数値、B⇒上の表の結果③の削減率(B)の数値"]

{"sheet":"MAST","index":17,"n_rows":10,"n_cols":11,"rows_kept":10,"cut":false,"hidden":true,"merged":[]}
[]
[null,null,null,"1地域","2地域","3地域","4地域","5地域","6地域","7地域","8地域"]
[null,1,"外皮平均熱貫流率",0.46,0.46,0.56000000000000005,0.75,0.87,0.87,0.87,"（基準なし）"]
[null,2,"冷房期の平均日射熱取得率","（基準なし）","（基準なし）","（基準なし）","（基準なし）",3,2.8,2.7,3.2]
[null,3,"ZEHマーク外皮基準",0.4,0.4,0.5,0.6,0.6,0.6,0.6,"（基準なし）"]
[]
[null,null,"　『ZEH』"," 外皮：省エネ基準 ・ ZEH外皮基準　一次エネ：A≧20　＆　B≧100"]
[null,null,"　NearlyZEH"," 外皮：省エネ基準 ・ ZEH外皮基準　一次エネ：A≧20　＆　75≦B＜100"]
[null,null,"  ZEH oriented"," 外皮：省エネ基準 ・ ZEH外皮基準　一次エネ：A≧20"]
[null,null,"　ゼロエネ相当"," 外皮：省エネ基準 　一次エネ：A≧20　＆　B≧100"]

{"sheet":"掲承1面","index":18,"n_rows":47,"n_cols":27,"rows_kept":47,"cut":false,"hidden":false,"merged":[[2,0,2,26],[3,0,3,26],[30,0,30,26],[23,0,26,26],[18,13,20,24],[12,13,14,24],[28,5,28,25],[5,18,5,19],[5,21,5,22],[5,24,5,25],[32,0,32,4],[32,5,32,12],[33,0,33,4],[34,0,34,4],[35,0,35,4],[44,5,44,12],[44,13,44,26],[43,0,43,4],[44,0,44,4],[46,0,46,4],[46,5,46,12],[46,13,46,26],[45,0,45,4],[45,5,45,12],[45,13,45,26],[42,5,42,12],[43,5,43,12],[42,13,42,26],[43,13,43,26],[41,0,41,4],[42,0,42,4],[41,5,41,12],[41,13,41,26],[40,5,40,12],[37,13,37,26],[40,13,40,26],[39,0,39,4],[40,0,40,4],[39,5,39,12],[39,13,39,26],[36,0,36,4],[38,5,38,12],[35,13,35,26],[38,13,38,26],[33,13,33,26],[34,13,34,26],[37,0,37,4],[38,0,38,4],[37,5,37,12],[32,13,32,26],[36,5,36,12],[35,5,35,12],[34,5,34,12],[33,5,33,12],[36,13,36,26]]}
["（別記参考様式第３号）"]
[]
["ＢＥＬＳに係る評価物件　掲載承諾書"]
["（第一面）"]
[]
[null,null,null,null,null,null,null,null,null,null,null,null,null,null,null,null,"令和",null,{"$f":"IF(評価申請書1面!S11=\"\",\"\",評価申請書1面!S11)","v":""},null,"年",{"$f":"IF(評価申請書1面!V11=\"\",\"\",評価申請書1面!V11)","v":""},null,"月",{"$f":"IF(評価申請書1面!Y11=\"\",\"\",評価申請書1面!Y11)","v":""},null,"日"]
[]
["一般財団法人 岩手県建築住宅センター"]
[null,null,"理事長　　金 田　義 徳　様"]
[]
[null,null,null,null,null,null,null,null,null,null,null,null,"申請者（届出者）の住所又は主たる事務所の所在地"]
[]
[null,null,null,null,null,null,null,null,null,null,null,null,null,{"$f":"IF('2面'!J8=\"\",\"\",'2面'!J8)","v":0}]
[]
[]
[null,null,null,null,null,null,null,null,null,null,null,null,"申請者(届出者）の氏名又は名称"]
[null,null,null,null,null,null,null,null,null,null,null,null,"（法人にあってはその代表者の氏名）"]
[]
[null,null,null,null,null,null,null,null,null,null,null,null,null,{"$f":"IF('2面'!J5=\"\",\"\",'2面'!J5)","v":0},null,null,null,null,null,null,null,null,null,null,null,"印"]
[]
[]
[]
[]
["　私は、一般財団法人岩手県建築住宅センター（以下「評価機関」という。）により、ＢＥＬＳに係る評価を受けた下記物件について、一般社団法人住宅性能評価・表示協会（以下「評価協会」という。）の定めるＢＥＬＳ評価業務方法書に従い、評価機関及び評価協会に対し、評価結果等の公表について、下記のとおり承諾します。"]
[]
[]
[]
[]
["建築物の名称",null,null,null,null,{"$f":"IF('3面'!J7=\"\",\"\",'3面'!J7)","v":0}]
[]
["記"]
[]
["ホームページ等への\n公開・非公開の選択",null,null,null,null,"項　目",null,null,null,null,null,null,null,"内　容"]
["公開",null,null,null,null,"評価年月日",null,null,null,null,null,null,null," 評価書発行年月日"]
["公開",null,null,null,null,"建築物の所在地及び地域区分",null,null,null,null,null,null,null," 申請書第三面（都道府県のみ）"]
["公開",null,null,null,null,"建築物の階数,延べ面積,構造",null,null,null,null,null,null,null," 申請書第三面"]
["公開",null,null,null,null,"申請対象部分の用途",null,null,null,null,null,null,null," 申請書第四面ほか"]
["公開",null,null,null,null,"星による５段階のマーク",null,null,null,null,null,null,null," 評価書に表示された星の数"]
["公開",null,null,null,null,"採用した評価手法",null,null,null,null,null,null,null," 申請書第四面ほか"]
["公開",null,null,null,null,"BEIの値",null,null,null,null,null,null,null," 申請書第四面ほか"]
["公開",null,null,null,null,"削減率",null,null,null,null,null,null,null," 評価書に表示されたエネルギー消費量等の削減率"]
["公開",null,null,null,null,"単位面積当たりの一次エネルギー消費量（設計値・基準値）",null,null,null,null,null,null,null," 評価書に表示された単位面積当たりの一次エネルギー消費量等（設計値・基準値）"]
["公開",null,null,null,null,"各設備の単位面積当たりの一次エネルギー消費量等（設計値・基準値）",null,null,null,null,null,null,null," 評価書に表示された各設備等の評価結果詳細"]
["公開",null,null,null,null,"外皮基準への適合",null,null,null,null,null,null,null," 申請書第四面ほか"]
["公開",null,null,null,null,"「ZEBマーク」又は「ZEHマーク」「ゼロエネ相当」「ZEH-Mマーク」に関する表示等",null,null,null,null,null,null,null," 申請書第四面・参考情報ほか"]
["公開",null,null,null,null,"参考情報の有無",null,null,null,null,null,null,null," 申請書第四面"]
["公開",null,null,null,null,"二次エネルギー消費量に関する項目",null,null,null,null,null,null,null," 評価書に表示された二次エネルギー消費量"]

{"sheet":"掲承2面","index":19,"n_rows":37,"n_cols":30,"rows_kept":37,"cut":false,"hidden":false,"merged":[[36,0,36,5],[31,6,31,26],[32,6,32,26],[34,6,34,26],[35,6,35,26],[36,6,36,26],[31,0,31,5],[32,0,32,5],[34,0,34,5],[35,0,35,5],[33,0,33,5],[33,6,33,26],[3,10,7,13],[8,10,12,13],[21,28,27,28],[21,1,27,25],[4,14,5,26],[11,14,11,26],[12,14,12,26],[13,14,13,26],[14,14,15,26],[8,14,8,26],[9,14,10,26],[0,0,0,26],[3,14,3,26],[1,10,1,13],[30,0,30,26],[29,0,29,26],[6,1,7,6],[7,14,7,26],[6,14,6,26],[19,0,19,6],[16,1,17,6],[16,14,16,26],[17,14,17,26],[13,10,17,13],[18,10,19,13],[18,14,19,26],[11,1,12,6]]}
["（第二面）"]
[null,"公開",null,null,null,null,null,null,"非公開",null,"建築物の名称",null,null,null,"申請書第三面ほか"]
[]
[null,"公開(申請書記載全て）",null,null,null,null,null,null,"非公開",null,"申請者名",null,null,null,"申請書第二面"]
[null,"公開(氏名のみ)",null,null,null,null,null,null,null,null,null,null,null,null,"・申請書の第二面【氏名又は名称】の記載から公開したい内容を選ぶことができます\n（複数の場合は、代表となる一つが抽出されます）"]
[null,"公開(名称)"]
[null,"※名称の場合は公開する名称を右記欄に記載",null,null,null,null,null,null,null,null,null,null,null,null,"※公開する名称"]
[]
[null,"公開(申請書記載全て）",null,null,null,null,null,null,"非公開",null,"設計者名",null,null,null,"申請書第二面"]
[null,"公開(氏名のみ)",null,null,null,null,null,null,null,null,null,null,null,null,"・申請書の第二面【氏名又は名称】の記載から公開したい内容を選ぶことができます\n（複数の場合は、代表となる一つが抽出されます）"]
[null,"公開(名称)"]
[null,"※名称の場合は公開する名称を右記欄に記載",null,null,null,null,null,null,null,null,null,null,null,null,"※公開する名称"]
[]
[null,"公開(申請書記載全て）",null,null,null,null,null,null,"非公開",null,"工事施工者名",null,null,null,"申請書第二面"]
[null,"公開(氏名のみ)",null,null,null,null,null,null,null,null,null,null,null,null,"・申請書の第二面【氏名又は名称】の記載から公開したい内容を選ぶことができます\n（複数の場合は、代表となる一つが抽出されます）"]
[null,"公開(名称)"]
[null,"※名称の場合は公開する名称を右記欄に記載",null,null,null,null,null,null,null,null,null,null,null,null,"※公開する名称"]
[]
[null,"公開",null,null,null,null,null,null,"非公開",null,"アピール\nポイント",null,null,null,"※アピールポイント記入欄に、200文字以内でご記入ください。"]
[]
["※アピールポイント記入欄（非公開の場合は記入不要）",null,null,null,null,null,null,null,null,null,null,null,null,null,null,null,null,null,null,null,null,null,null,null,null,null,null,null,"文字数カウント"]
[null,null,null,null,null,null,null,null,null,null,null,null,null,null,null,null,null,null,null,null,null,null,null,null,null,null,null,null,{"$f":"LEN(B22)","v":0}]
[]
[]
[null,null,null,null,null,null,null,null,null,null,null,null,null,null,null,null,null,null,null,null,null,null,null,null,null,null,null,null,null,"←改行せず入力すると、200字カウントします。"]
[]
[]
[]
[]
["1.公表の内容と公表先について\n＊評価機関及び評価協会は、本承諾書において「公開」と記載されている項目又は「公開」を選択した項目について、「内容」欄に記載された情報に基づき、両機関が発行・作成するホームページや機関誌等において当該評価物件の情報を掲載します。\n\n2.記入上の注意\n＊上記全ての欄に記入の上、提出してください。\n＊「ホームページ等への公開・非公開の選択」の欄に「公開」と記載された項目は、個人や個別の建築物が特定されない情報により公開必須になっている項目です。\n＊「ホームページ等への公開・非公開の選択」の欄に□の表示がある項目については、該当するものに■またはレでチェックしてください。\n\n3.評価協会ホームページ掲載のための注意事項\n　BELS事例紹介ページでは、BELSに係る評価申請書の第二面に記載された申請者・設計者・工事施工者（以下「申請者等」という。）の氏名又は名称部分を自動的に抽出し、評価書の取得した件数等を掲載しております。そのため、同一のものが正しく抽出できるよう、申請者等の氏名又は名称は以下の項目に注意して記載してください。正しく抽出されない場合は、同一申請者等においても異なる申請者等として分類されます。\n(正しく抽出されない例)\n　＊略称の混在　（㈱・（株）は「株式会社」に統一など分類すれば正しく抽出されます）\n　＊全角・半角の使い方\n　＊同一名称の異なる事業者名（一字一句同一なもの）は同じものとして集計されます。\n　　（回避するために、代表者の氏名まで公開情報とするなど対策をしてください。）"]
["（本件に係わる連絡先）"]
["会社名："]
["部署名・役職名："]
["氏名："]
["電話："]
["FAX："]
["Email："]

{"sheet":"変更評価申請書1面","index":20,"n_rows":53,"n_cols":27,"rows_kept":53,"cut":false,"hidden":false,"merged":[[26,1,28,25],[2,0,2,26],[3,0,3,26],[5,18,5,19],[5,21,5,22],[5,24,5,25],[16,26,18,26],[19,26,21,26],[22,26,24,26],[13,26,15,26],[13,14,15,25],[16,14,18,25],[19,14,21,25],[22,14,24,25],[52,0,55,26],[30,1,30,25],[33,13,33,19],[34,12,34,20],[44,0,50,26]]}
["（別記様式第８号）"]
[]
["ＢＥＬＳに係る変更評価申請書"]
["（第一面）"]
[]
[null,null,null,null,null,null,null,null,null,null,null,null,null,null,null,null,"平成",null,null,null,"年",null,null,"月",null,null,"日"]
[]
[null,"一般財団法人 岩手県建築住宅センター"]
[null,null,null,"理事長　　金 田　義 徳　様"]
[]
[null,null,null,null,null,null,null,null,null,null,null,null,null,"申請者の氏名又は名称"]
[null,null,null,null,null,null,null,null,null,null,null,null,null,"（法人にあってはその代表者の氏名）"]
[]
[null,null,null,null,null,null,null,null,null,null,null,null,null,null,{"$f":"IF(入力シート!H10=\"\",\"\",入力シート!H12&CHAR(10)&入力シート!H10)","v":""},null,null,null,null,null,null,null,null,null,null,null,"印"]
[]
[]
[null,null,null,null,null,null,null,null,null,null,null,null,null,null,{"$f":"IF(入力シート!H16=\"\",\"\",入力シート!H18&CHAR(10)&入力シート!H16)","v":""},null,null,null,null,null,null,null,null,null,null,null,{"$f":"IF(O17=\"\",\"\",\"印\")","v":""}]
[]
[]
[null,null,null,null,null,null,null,null,null,null,null,null,null,null,{"$f":"IF('2-別 (申)'!J5=\"\",\"\",'2-別 (申)'!J8&CHAR(10)&'2-別 (申)'!J5)","v":""},null,null,null,null,null,null,null,null,null,null,null,{"$f":"IF(O20=\"\",\"\",\"印\")","v":""}]
[]
[]
[null,null,null,null,null,null,null,null,null,null,null,null,null,null,{"$f":"IF('2-別 (申)'!J14=\"\",\"\",'2-別 (申)'!J17&CHAR(10)&'2-別 (申)'!J14)","v":""},null,null,null,null,null,null,null,null,null,null,null,{"$f":"IF(O23=\"\",\"\",\"印\")","v":""}]
[]
[]
[]
[null,"　下記の建築物について、ＢＥＬＳに係る変更評価の申請をします。この申請書及び添付図書に記載の事項は、事実に相違ありません。"]
[]
[]
[]
[null,"記"]
[]
[null,"【計画を変更する建築物の直前の評価】"]
[null,"１．ＢＥＬＳ評価書交付番号",null,null,null,null,null,null,null,null,null,null,"第","093-00-2018-00001",null,null,null,null,null,null,"号"]
[null,"２．ＢＥＬＳ評価書交付年月日",null,null,null,null,null,null,null,null,null,null,"年　　月　　日"]
[null,"３．ＢＥＬＳ評価書交付者"]
[null,"４．変更の概要"]
[]
[]
[]
["※受付欄",null,null,null,null,null,null,null,null,null,"※料金欄"]
[null,null,null,"年",null,null,"月",null,null,"日"]
["第",null,null,null,null,null,null,null,null,"号"]
["申請受理者印",null,null,null,null,null,null,null,null,null,null,null,null,null,null,null,null,null,null,null,null,null,null,null,null,"円"]
["＜評価機関からのお願い＞\n　BELSに係る評価申請の内容について、個人や個別の建築物が特定されない統計情報として、国土交通省に提供することがございますので、あらかじめご了承のほどお願い申し上げます。\n　また、BELS評価書取得物件は、申請書・評価書に記載されている項目について、（一社）住宅性能評価・表示協会ホームページにて、BELS事例紹介として評価結果等の公表をさせていただきます。ただし、個人や個別の建築物が特定される情報については、掲載承諾書にて公開の承諾が得られた場合に限ります。"]
[]
[]
[]
[]
[]
[]
[]
["（注意）　　　　　　　　　　　　　　　　　　　　　　　　　　　　　　　　　　　　　　\n  ① 申請者が法人である場合には、代表者の氏名を併せて記載してください。\n  ② 申請者の氏名（法人にあってはその代表者の氏名）の記載を自署で行う場合においては、\n　　 押印を省略することができます。"]

{"sheet":"軽微な変更","index":21,"n_rows":50,"n_cols":38,"rows_kept":50,"cut":false,"hidden":false,"merged":[[44,1,48,26],[26,9,26,10],[26,14,26,15],[26,17,26,19],[25,11,25,12],[25,14,25,15],[25,17,25,18],[28,9,28,25],[29,9,30,25],[33,18,35,26],[39,5,39,25],[41,5,41,25],[21,1,21,25],[23,0,23,26],[11,18,11,19],[11,21,11,22],[11,24,11,25],[0,0,4,0],[0,1,0,3],[0,4,0,6],[0,7,0,9],[0,10,0,12],[49,14,54,26],[0,13,0,16],[0,17,0,23],[0,24,0,26],[1,1,4,3],[1,4,4,6],[1,7,4,9],[1,10,4,12],[1,13,2,16],[1,17,4,23],[2,25,2,26],[3,13,4,16],[3,25,4,26],[8,0,8,26],[9,0,9,26],[18,15,20,25]]}
["決裁欄","局　長",null,null,"室　長",null,null,null,null,null,"担当者",null,null,"公印承認",null,null,null,"決裁年月日"]
[null,null,null,null,null,null,null,null,null,null,null,null,null,null,null,null,null,null,null,null,null,null,null,null,"月",null,"日"]
[null,null,null,null,null,null,null,null,null,null,null,null,null,null,null,null,null,null,null,null,null,null,null,null,"郵","受領印"]
[null,null,null,null,null,null,null,null,null,null,null,null,null,"通数（　）"]
[]
["　□本人　□委任状（窓口に持参した人の確認（□運転免許証等））　□手数料"]
[]
[]
["ＢＥＬＳに係る評価 軽微な変更に係る報告書",null,null,null,null,null,null,null,null,null,null,null,null,null,null,null,null,null,null,null,null,null,null,null,null,null,null,null,null,null,null,null,null,null,null,null,null,"□"]
["（第一面）",null,null,null,null,null,null,null,null,null,null,null,null,null,null,null,null,null,null,null,null,null,null,null,null,null,null,null,null,null,null,null,null,null,null,null,null,"■"]
[]
[null,null,null,null,null,null,null,null,null,null,null,null,null,null,null,null,"令和",null,null,null,"年",null,null,"月",null,null,"日"]
[]
[null,"一般財団法人 岩手県建築住宅センター"]
[null,null,null,"理事長　　金 田　義 徳　様"]
[]
[null,null,null,null,null,null,null,null,null,null,null,null,null,null,"申請者の氏名又は名称"]
[null,null,null,null,null,null,null,null,null,null,null,null,null,null,"（法人にあってはその代表者の氏名）"]
[null,null,null,null,null,null,null,null,null,null,null,null,null,null,null,{"$f":"変更評価申請書1面!O14","v":""}]
[null,null,null,null,null,null,null,null,null,null,null,null,null,null,null,null,null,null,null,null,null,null,null,null,null,null,"印"]
[]
[null,"　下記のとおり、ＢＥＬＳ評価書の軽微な変更内容を届け出ます。"]
[]
["記"]
[]
[null,"1.","評価書交付年月日",null,null,null,null,"：",null,"令和",null,null,null,"年",null,null,"月",null,null,"日",null,null,null,null,null,null,null,"←半角入力"]
[null,"2.","評価書交付番号",null,null,null,null,"：",null,"003",null,"－","00","－","0000",null,"－","00000",null,null,null,null,null,null,null,null,null,"←半角入力"]
[null,"3.","評価書交付機関",null,null,null,null,"：",null,"一般財団法人岩手県建築住宅センター"]
[null,"4.","建築物の名称",null,null,null,null,"：",null,{"$f":"入力シート!H4","v":0}]
[null,"5.","建築物の所在地",null,null,null,null,"：",null,{"$f":"入力シート!H6","v":0}]
[]
[null,"6.","変更等の概要及び理由"]
[]
[null,null,null,"□","代理者",null,null,null,null,"（","□","変更",null,"□","決定",null,"）",null,"※「BELSに係る評価申請書」第二面に、変更箇所のみ記載し、添付してください。"]
[null,null,null,"□","建築主等",null,null,null,null,"（","□","変更",null,"□","決定",null,"）"]
[null,null,null,"□","設計者等",null,null,null,null,"（","□","変更",null,"□","決定",null,"）"]
[null,null,null,"□","工事施工者",null,null,null,null,"（","□","変更",null,"□","決定",null,"）"]
[null,null,null,"□","その他の変更"]
[null,null,null,null,"□","効率が向上する設備機器の変更等",null,null,null,null,null,null,null,null,null,null,null,null,null,null,null,null,null,null,null,null,null,null,"←変更内容は簡潔に記載し、変更内容を確認できる図面や資料等を添付してください。"]
[null,null,null,null,null,"別紙による"]
[null,null,null,null,"□","その他",null,null,null,null,null,null,null,null,null,null,null,null,null,null,null,null,null,null,null,null,null,"　記入しきれない場合は、別紙を利用するか、設計内容説明書に記載してください。"]
[]
[]
["（注意）"]
[null,"①「BELSに係る評価申請書」の第二面～第四面の記載事項の変更、設備機器の変更で効率が向上する等の適合が明らかな変更が生じた場合に報告してください。\n②外皮計算書に係る変更および設備機器を新たに設置する等の根本的な計画の変更の場合は「BELSに係る変更評価申請書」を提出してください。\n③地名地番の変更や申請者名の追加等、再審査を要しない変更により、評価書を再発行する場合は「BELSに係る評価再交付申請書」も併せて提出してください。"]
[]
[]
[]
[]
[null,null,null,null,null,null,null,null,null,null,null,null,null,null,"上記の届出の件について、受理しました。\n\n　　　　　　　　　　令和　　年　　月　　日\n\n　　一般財団法人岩手県建築住宅センター\n\n理事長　金田　義徳　　　印"]

{"sheet":"軽微な変更-別（参考書式）","index":22,"n_rows":11,"n_cols":10,"rows_kept":11,"cut":false,"hidden":false,"merged":[[0,0,0,27],[1,0,1,27],[3,2,3,26],[5,1,5,8],[5,9,5,26]]}
["（第一面 別紙：変更の概要）"]
["※参考様式のため、独自にご準備頂いた書面の添付に代えることもできます。※"]
[null,"建築物の名称"]
[null,null,{"$f":"IF('3面'!J7=\"\",\"\",'3面'!J7)","v":0}]
[]
[null,"変更した図書等",null,null,null,null,null,null,null,"変更の概要"]
[]
[]
[]
[]
[null,"　"]

{"sheet":"再交付","index":23,"n_rows":58,"n_cols":56,"rows_kept":58,"cut":false,"hidden":false,"merged":[[53,7,56,9],[53,10,56,12],[2,0,2,27],[3,0,3,27],[4,19,4,20],[4,22,4,23],[37,9,37,10],[28,11,28,12],[4,25,4,26],[11,14,13,25],[16,14,18,25],[20,20,20,26],[28,14,28,15],[28,17,28,18],[21,20,21,26],[22,20,22,26],[24,1,24,26],[25,43,28,54],[32,9,33,26],[29,43,31,54],[32,43,34,54],[26,0,26,27],[29,9,29,10],[29,14,29,15],[29,17,29,19],[31,9,31,26],[47,0,51,27],[52,0,56,0],[52,1,52,3],[52,4,52,6],[52,7,52,9],[52,10,52,12],[52,13,52,16],[52,17,52,23],[52,24,52,27],[54,26,54,27],[53,13,54,16],[53,17,56,23],[55,13,56,16],[55,26,56,27],[53,1,56,3],[53,4,56,6]]}
[]
[]
["ＢＥＬＳに係る評価 再交付申請書"]
[]
[null,null,null,null,null,null,null,null,null,null,null,null,null,null,null,null,null,"平成",null,null,null,"年",null,null,"月",null,null,"日"]
[]
[null,"一般財団法人 岩手県建築住宅センター"]
[null,null,null,"理事長　　金 田　義 徳　様"]
[]
[null,null,null,null,null,null,null,null,null,null,null,null,null,null,null,null,null,null,null,null,null,null,null,null,null,null,null,null,null,null,null,null,null,null,null,null,null,null,null,null,null,null,"申請者の氏名又は名称"]
[null,null,null,null,null,null,null,null,null,null,null,null,null,"申請者（届出者）の住所又は主たる事務所の所在地"]
[]
[]
[]
[null,null,null,null,null,null,null,null,null,null,null,null,null,"申請者(届出者）の氏名又は名称"]
[null,null,null,null,null,null,null,null,null,null,null,null,null,"（法人にあってはその代表者の氏名）"]
[]
[null,null,null,null,null,null,null,null,null,null,null,null,null,null,null,null,null,null,null,null,null,null,null,null,null,null,"印"]
[]
[null,null,null,null,null,null,null,null,null,null,null,null,null,"建築主以外の場合"]
[null,null,null,null,null,null,null,null,null,null,null,null,null,null,"建築主の氏名"]
[null,null,null,null,null,null,null,null,null,null,null,null,null,null,"建築主との関係"]
[null,null,null,null,null,null,null,null,null,null,null,null,null,null,"連絡先（電話番号）",null,null,null,null,null,null,null,null,null,null,null,null,null,null,null,null,null,null,null,null,null,null,null,null,null,null,null,"（法人にあってはその代表者の氏名）"]
[]
[null,"　下記の建築物について再交付を申請します。"]
[null,null,null,null,null,null,null,null,null,null,null,null,null,null,null,null,null,null,null,null,null,null,null,null,null,null,null,null,null,null,null,null,null,null,null,null,null,null,null,null,null,null,null,null,null,null,null,null,null,null,null,null,null,null,null,"印"]
["記"]
[]
[null,"1.","評価書交付年月日",null,null,null,null,"：",null,"平成",null,null,null,"年",null,null,"月",null,null,"日"]
[null,"2.","評価書交付番号",null,null,null,null,"：",null,"003",null,"－","00","－",null,null,"－",null,null,null,null,null,null,null,null,null,null,null,"←半角入力",null,null,null,null,null,null,null,null,null,null,null,null,null,null,null,null,null,null,null,null,null,null,null,null,null,null,{"$f":"IF(AR30=\"\",\"\",\"印\")","v":""}]
[null,"3.","評価書交付機関",null,null,null,null,"：",null,"一般財団法人岩手県建築住宅センター"]
[null,"4.","建築物の名称",null,null,null,null,"：",null,null,null,null,null,null,null,null,null,null,null,null,null,null,null,null,null,null,null,null,"←半角入力"]
[null,"5.","建築物の所在地",null,null,null,null,"：",null,null,null,null,null,null,null,null,null,null,null,null,null,null,null,null,null,null,null,null,null,null,null,null,null,null,null,null,null,null,null,null,null,null,null,null,null,null,null,null,null,null,null,null,null,null,null,{"$f":"IF(AR33=\"\",\"\",\"印\")","v":""}]
[]
[null,"6.","再交付の理由",null,null,null,null,"：",null,null,"滅失",null,null,"汚損",null,null,"破損",null,null,"評価書記載事項の変更"]
[null,null,null,null,null,null,null,null,null,null,"※滅失以外の場合、直前の評価書を添付してください。",null,null,null,null,null,null,null,null,null,null,null,null,null,null,null,null,null,"←変更前の名称"]
[null,null,null,null,null,null,null,null,null,null,"※評価書記載事項の変更の場合、第二面を添付してください。"]
[null,"7.","再交付の通数",null,null,null,null,"：",null,null,null,"通",null,null,null,null,null,null,null,null,null,null,null,null,null,null,null,null,"←変更前の所在地"]
[]
["※受付欄",null,null,null,null,null,null,null,null,null,"※料金欄",null,null,null,null,"□","一括",null,"□","振込",null,"□","現金",null,null,null,null,null,"←軽微変更申請も提出"]
[null,null,null,null,null,null,null,null,null,null,null,null,null,null,null,null,null,null,null,null,null,null,null,null,null,null,null,null,"　軽微の中で、評価書の内容項目作成"]
[null,null,null,"年",null,null,"月",null,null,"日",null,null,null,null,null,null,null,null,null,null,null,null,null,null,null,null,"円"]
[]
["第",null,null,null,null,null,null,null,null,"号","※再交付日",null,null,null,null,"平成",null,null,"年",null,"月",null,"日"]
[null,null,null,null,null,null,null,null,null,null,"※再交付の種類　",null,null,null,null,"□","再交付"]
["申請受理者印",null,null,null,null,null,null,null,null,null,null,null,null,null,null,"□","記載事項の変更"]
[]
["（注意）　　　　　　　　　　　　　　　　　　　　　　　　　　　　　　　　　　　　　　\n  ① 申請者が法人である場合には、代表者の氏名を併せて記載してください。\n  ② 申請者の氏名（法人にあってはその代表者の氏名）の記載を自署で行う場合においては、押印を\n　   省略することができます。\n　③ 申請者名が変更になった場合は、変更後の申請者名を記載してください。\n　④ 建築物の名称及び建築物の所在地に変更がある場合は、変更前のものを記載してください。"]
[]
[]
[]
[]
["決裁欄","局　長",null,null,"室　長",null,null,null,null,null,"担当者",null,null,"公印承認",null,null,null,"決裁年月日",null,null,null,null,null,null,"発送年月日"]
[null,null,null,null,null,null,null,null,null,null,null,null,null,null,null,null,null,null,null,null,null,null,null,null,null,"月",null,"日"]
[null,null,null,null,null,null,null,null,null,null,null,null,null,null,null,null,null,null,null,null,null,null,null,null,"□","郵","受領印"]
[null,null,null,null,null,null,null,null,null,null,null,null,null,"通数（　）"]
[]
["　□本人　□委任状（窓口に持参した人の確認（□運転免許証等））　□手数料"]

{"sheet":"再2面","index":24,"n_rows":39,"n_cols":28,"rows_kept":39,"cut":false,"hidden":false,"merged":[[0,0,0,27],[5,2,5,23],[8,2,8,23],[10,28,13,28],[11,2,12,23],[1,0,1,27],[15,2,15,23],[18,7,18,9],[18,10,19,26],[20,11,20,13],[22,10,22,26],[23,22,23,26],[24,10,24,15],[24,19,24,24],[25,10,25,12],[26,19,26,20],[26,22,26,23],[26,25,26,26]]}
["（第二面：評価書記載事項の変更）"]
["※再交付理由が、滅失・汚損・破損の場合、第二面の添付不要です。"]
["評価書記載事項の変更"]
[]
[null,"申請者の連絡先"]
[]
[]
[null,"申請者の氏名又は名称"]
[]
[]
[null,"建築物の所在地"]
[]
[]
[]
[null,"名称"]
[]
[]
["建築物に関する概要"]
["【１.建築物の所在地】",null,null,null,null,null,null,"岩手県"]
[]
["【２.該当する地域の区分】",null,null,null,null,null,null,null,null,null,"（",{"$f":"IF(#REF!=\"\",\"\",#REF!)","v":{"$error":"#REF!"}},null,null,"）"]
["【３.建築物の用途】",null,null,null,null,null,null,null,null,null,null,"一戸建ての住宅"]
["【４.建築物の名称】"]
["【５.建築物の階数】",null,null,null,null,null,null,null,null,null,"（地上）",null,null,null,"階",null,"（地下）",null,null,null,"階"]
["【６.建築物の構造】",null,null,null,null,null,null,null,null,null,null,null,null,null,null,null,"造　一部",null,null,null,null,null,null,null,null,"造"]
["【７.建築物の延べ面積】",null,null,null,null,null,null,null,null,null,null,null,null,"㎡"]
["【８.建築物の新築の竣工時期（計画中の場合は予定工期）】",null,null,null,null,null,null,null,null,null,null,null,null,null,null,null,null,"平成",null,null,null,"年",null,null,"月",null,null,"日"]
[null,"建築物に関する基本的事項"]
[null,null,"地階"]
[]
[]
[null,"建築物の新築の竣工時期（計画中の場合は予定工期）"]
[null,null,"平成",null,null,"年",null,"月",null,"日"]
[]
[null,"一次エネルギー消費量基準"]
[]
[null,"外皮性能基準"]
[]
[null,"参考情報"]